Workbook

Sheet Anleitung
A1: W I L K A - V O R S P R U N G D U R C H Q U A L I T Ä T
A8: WILKA-Schließplan - Erfassung im Excel-Format
A9: Anleitung
A12: Der WILKA-Excel-Schließplan ist mit vielen Funktionen ausgestattet, die Ihnen das Erstellen eines Schließplanes
A13: vereinfachern sollen.
A15: Auf den nachstehenden Seiten erhalten Sie eine Übersicht über die Funktionen des WILKA-Excel-Schließplanes.
A17: Bei Fragen oder Anregungen zu dem Excelschließplan senden Sie uns bitte eine E-Mail an:
A19: schliessanlagen@wilka.de
B22: Inhaltsverzeichnis
B25: Einleitung | F25: Seite 1
B26: 1. Musterschließanlagen | F26: Seite 1
B27: 2. Schließplan | F27: Seite 2
B28: 2.1 Systemauswahl | F28: Seite 3
B29: 2.2 Anlagenart | F29: Seite 3
B30: 2.3 Artikelauswahl | F30: Seite 4
B31: 2.4 Färbungen und Sonderausstattungen | F31: Seite 5
B32: 3. Artikelliste | F32: Seite 6
B33: 4. Massenermittlung | F33: Seite 7
B34: 4.1 Massenermittlung als Angebotsformular | F34: Seite 9
B35: 5. Sonderfunktion mit Makro | F35: Seite 10
B36: 5.1 Markierten Bereich drucken | F36: Seite 10
B37: 5.2 Schließplanversand per E-Mail | F37: Seite 11
A60: Einleitung
A62: Der WILKA-Excel-Schließplan dient zur Erfassung Ihres Schließplanes mit allen in Excel vorhandenen
A63: Funktionen. Sie haben hier die Möglichkeit fünf Tabellen mit besonderen Features auszuwählen.
A64: Die einzelnen Tabellen erreichen Sie durch Auswahl eines Karteireiters im unteren Teil des Bildschirmes.
A70: 1. Musterschließanlagen
A72: Für jede gängige Schließanlagenart haben wir eine Musterschließanlage hinterlegt. Durch Klick des Dropdown-Pfeiles
A73: öffnet sich eine Auswahl aller vorhandenen Schließanlagenarten.
A109: Nach Auswahl einer Schließanlagenart wird Ihnen eine entsprechende Musterschließanlage angezeigt.
A110: Hier können Sie die Schreibweise von übergeordneten Schlüsseln und Zentral- bzw. Mitschließungsfunktionen
A111: entnehmen.
A128: 2. Schließplan
A130: Der WILKA-Excel-Schließplan ist wie der ausgedruckte WILKA-Werksplan aufgebaut. Erfassen Sie hier
A131: Ihre Schließanlage mit Schließungsnummern, Türnummern, Raumbezeichnungen, Stückzahlen Zylinder und
A132: Schlüssel, Artikel, Längen und Ausführungen. Geben Sie den einzelnen Zylindern die gewünschten Funktionen.
A159: 2.1 Systemauswahl
A161: Entscheiden Sie vor der Eingabe in welchem Schließanlagensystem die Anlage bestellt werden soll. Durch
A162: Klick auf den Pfeil erscheinen in einem Dropdown-Menü alle verfügbaren Systeme.
A183: 2.2 Anlagenart
A185: Wie bei der Systemauswahl können Sie auch hier über ein Dropdown-Menü Ihre Wunschanlagenart auswählen.
A211: 2.3 Artikelauswahl
A213: In jeder Zelle unter Artikel haben Sie ein Dropdown-Menü in dem Sie den entsprechenen Artikel auswählen können.
A214: Wenn Ihnen die WILKA-Artikel geläufig sind können Sie diese natürlich auch händisch einpflegen.
A246: WICHTIG !!! Bevor Sie mit der Artikeleinpflege starten, wählen Sie Ihr gewünschtes Anlagensystem aus.
A247: Die Artikelliste bezieht sich immer auf das gewählte System. Bei falscher Artikeleingabe erscheint
A248: eine Fehlermeldung.
A282: 2.4 Färbungen und Zusatzausstattungen
A284: In der Artikelliste sind neben den WILKA-Artikeln auch die möglichen Färbungen und ein Auszug aus den
A285: gängigen Zusatzausstattungen aufgeführt. Entnehmen Sie hier die entsprechenden Kurzbezeichnungen und
A286: tragen Sie diese in der Position bei der Spalte Färbung bzw. ZAS (Zusatzausstattung) ein.
A305: 3. Artikelliste
A307: In der Artikelliste sind alle Schließanlagensysteme hinterlegt. Die Artikel sind nach Zylinderart (wie z.B. Doppel-,
A308: Halb-, Knaufzylinder usw.) aufgeführt. Wählen Sie den gewünschten Zylindertyp aus der nebenstehenden
A309: Beschreibung und suchen in der Spalte System die Artikelbezeichnung.
A311: In unserem nachstehenden Beispiel suchen wir einen Profildoppelzylinder mit Not- und Gefahrenfunktion im
A312: Wendeschlüssel-System 3VE.
A329: Neben den aufgeführten Artikeltypen finden Sie hier auch die gängigen Zylinderfärbungen und -zusatzausstattungen.
A330: Auch diese sind Systemabhängig aufgelistet und die Machbarkeit wird durch ein "X" gekennzeichnet.
A356: 4. Sonderfunktionen mit Makro
A358: Der WILKA-Excel-Schließplan enthält Sonderfunktionen die über ein Makro aktiviert werden. Um diese Funktionen
A359: nutzen zu können, müssen Sie in Ihrer Excelversion die Sicherheitsfunktion von Makros anpassen.
A362: 4.1 Markierten Bereich drucken
A364: Markieren Sie in Ihrem Schließplan den zu druckenden Bereich.
A390: Klicken Sie dann mit der Maus auf den Button "Markierten Bereich drucken" und der ausgewählte Schließplan-
A391: bereich wird auf Ihrem ausgewählten Standarddrucker ausgedruckt.
A395: 4.2 Schließplanversand per E-Mail
A397: Nach Fertigstellung des Schließplanes haben Sie die Möglichkeit diesen per E-Mail weiterzuleiten. Betätigen Sie
A398: hierfür den Button "Versand per E-Mail"
A400: Es erscheint automatisch die Aufforderung den Schließplan zu speichern. Es wäre sinnvoll einen Ordner
A401: Schließanlagen (oder ähnlich) anzulegen, in dem Sie Ihre Schließpläne hinterlegen können. Geben Sie
A402: Ihrem Schließplan einen entsprechenden Namen und speichern diesen.
A403: Nach dem Speichervorgang öffnet sich Ihr E-Mail-Fenster mit der Datei im Anhang. Bitte beachten Sie hier,
A404: es handelt sich hierbei nur um den reinen Schließplan, die Tabellen Anleitung, Musterschließanlagen, Artikellisten
A405: und Massenermittlung sind aufgrund der Größe nicht mehr vorhanden.
A406: Sollten Sie jedoch alle Daten weiter benötigen, drücken Sie "Speichern unter" in Ihrer Excelversion und geben
A407: der Datei einen Namen. Die Datei WILKA-Schließplan… ist standardmäßig schreibgeschützt und kann nicht
A408: überschrieben werden.
A415: Speichern Sie Ihre Datei wie beschrieben.
A421: Die Tabellen Anleitung, Musterschließanlagen, Artikelliste und Massenermittlung werden aufgrund der Dateigröße
A422: für den E-Mail-Versand gelöscht.
A447: Es öffnet sich Ihr E-Mail-Programm mit der Excel-Schließplandatei im Anhang. Standardmäßig ist die E-Mail-
A448: Adresse schliessanlagen@wilka.de hinterlegt.

Sheet Musterschließanlagen
A1: GHS | B1: . | N1: Fachhändler: | Z1: Anzahl | BA1: 1 | BB1: 2 | BC1: 3 | BD1: 4 | BE1: 5 | BF1: 6 | BG1: 7 | BH1: 8 | BI1: 9 | BJ1: 10 | BK1: 11 | BL1: 12 | BM1: 13 | BN1: 14 | BO1: 15 | BP1: 16 | BQ1: 17 | BR1: 18 | BS1: 19 | BT1: 20 | BU1: 21 | BV1: 22 | BW1: 23 | BX1: 24 | BY1: 25 | BZ1: 26 | CA1: 27 | CB1: 28 | CC1: 29 | CD1: 30 | CE1: 31 | CF1: 32 | CG1: 33 | CH1: 34 | CI1: 35 | CJ1: 36 | CK1: 37 | CL1: 38 | CM1: 39 | CN1: 40 | CO1: 41 | CP1: 42 | CQ1: 43 | CR1: 44 | CS1: 45 | CT1: 46 | CU1: 47 | CV1: 48 | CW1: 49 | CX1: 50 | CY1: 51 | CZ1: 52 | DA1: 53 | DB1: 54 | DC1: 55 | DD1: 56 | DE1: 57 | DF1: 58 | DG1: 59 | DH1: 60 | DI1: 61 | DJ1: 62 | DK1: 63 | DL1: 64 | DM1: 65 | DN1: 66 | DO1: 67 | DP1: 68 | DQ1: 69 | DR1: 70 | DS1: 71 | DT1: 72 | DU1: 73 | DV1: 74 | DW1: 75 | DX1: 76 | DY1: 77 | DZ1: 78 | EA1: 79 | EB1: 80 | EC1: 81 | ED1: 82 | EE1: 83
A2: HS | B2: .
A3: HS/Z | B3: . | C3: Anlagenart: | F3: GHS | Z3: Übergeordnete Schlüssel
A4: Z/HS | B4: . | C4: System: | F4: TH6
A5: Z | B5: . | C5: Kunde: | F5: Max Mustermann | N5: Feld für Hinweise:
A6: SP | B6: . | F6: Musterstr. 1
A7: STR | B7: . | F7: 55555 Musterdorf
A8: HSR | B8: . | C8: Kom.: | F8: Muster
A9: Standard | B9: . | C9: Datum: | F9: 2006-03-30 | AA9: =IF(VLOOKUP($F$3,$BA$13:$IV$18,11,FALSE)<=0,"",VLOOKUP($F$3,$BA$13:$IV$18,11,FALSE)) -> GHS | AB9: =IF(VLOOKUP($F$3,$BA$13:$IV$18,12,FALSE)<=0,"",VLOOKUP($F$3,$BA$13:$IV$18,12,FALSE)) -> GS 1 | AC9: =IF(VLOOKUP($F$3,$BA$13:$IV$18,13,FALSE)<=0,"",VLOOKUP($F$3,$BA$13:$IV$18,13,FALSE)) -> GS 2 | AD9: =IF(VLOOKUP($F$3,$BA$13:$IV$18,14,FALSE)<=0,"",VLOOKUP($F$3,$BA$13:$IV$18,14,FALSE)) -> GS 3 | DH9: Spalte 1 | DN9: Spalte 2 | DT9: Spalte 3 | DZ9: Spalte 4
A10: WZ | B10: WILKA - VORSPRUNG DURCH QUALITÄT | N10: . | AA10: =IF(VLOOKUP($F$3,$BA$13:$IV$18,58,FALSE)<=0,"",VLOOKUP($F$3,$BA$13:$IV$18,58,FALSE)) -> Mmv | AB10: Mmv | AC10: Mmv | AD10: Mmv
B11: Position | D11: Schließungs- nummer | F11: Türnummer | H11: Raumbezeichnung | N11: Stückzahl | R11: Artikel | T11: Längen | X11: Färbung | AA11: Mmv | AB11: Mmv | AC11: Mmv | AD11: Mmv
N12: Zylinder | P12: Schlüssel | T12: A Aussen | V12: B Innen | Z12: ZAS | BA12: Art | BB12: Schlg. 1 | BC12: Bez. 1 | BD12: Stückz. 1 | BE12: Schlüssel 1 | BF12: Artikel 1 | BG12: Lg A1 | BH12: Lg B1 | BI12: Färb. 1 | BJ12: ZAS 1 | BK12: Übg 1 | BL12: Übg 2 | BM12: Übg 3 | BN12: Übg 4 | BO12: Schlg. 2 | BP12: Bez. 2 | BQ12: Stückz. 2 | BR12: Schlüssel 2 | BS12: Artikel 2 | BT12: Lg A2 | BU12: Lg B2 | BV12: Färb. 2 | BW12: ZAS 2 | BX12: Schlg. 3 | BY12: Bez. 3 | BZ12: Stückz. 3 | CA12: Schlüssel 3 | CB12: Artikel 3 | CC12: Lg A3 | CD12: Lg B3 | CE12: Färb. 3 | CF12: ZAS 3 | CG12: Schlg. 4 | CH12: Bez. 4 | CI12: Stückz. 4 | CJ12: Schlüssel 4 | CK12: Artikel 4 | CL12: Lg A4 | CM12: Lg B4 | CN12: Färb. 4 | CO12: ZAS 4 | CP12: Schlg. 5 | CQ12: Bez. 5 | CR12: Stückz. 5 | CS12: Schlüssel 5 | CT12: Artikel 5 | CU12: Lg A5 | CV12: Lg B5 | CW12: Färb. 5 | CX12: ZAS 5 | CY12: Schlg. 6 | CZ12: Bez. 6 | DA12: Stückz. 6 | DB12: Schlüssel 6 | DC12: Artikel 6 | DD12: Lg A6 | DE12: Lg B6 | DF12: Färb. 6 | DG12: ZAS 6 | DH12: Fkt. 1 | DI12: Fkt. 2 | DJ12: Fkt. 3 | DK12: Fkt. 4 | DL12: Fkt. 5 | DM12: Fkt. 6 | DN12: Fkt. 7 | DO12: Fkt. 8 | DP12: Fkt. 9 | DQ12: Fkt.10 | DR12: Fkt.11 | DS12: Fkt.12 | DT12: Fkt.13 | DU12: Fkt.14 | DV12: Fkt.15 | DW12: Fkt.16 | DX12: Fkt.17 | DY12: Fkt.18 | DZ12: Fkt.19 | EA12: Fkt.20 | EB12: Fkt.21 | EC12: Fkt.22 | ED12: Fkt.23 | EE12: Fkt.24
D13: =IF(VLOOKUP($F$3,$BA$13:$IV$18,2,FALSE)<=0,"",VLOOKUP($F$3,$BA$13:$IV$18,2,FALSE)) -> 1 | H13: =IF(VLOOKUP($F$3,$BA$13:$IV$18,3,FALSE)<=0,"",VLOOKUP($F$3,$BA$13:$IV$18,3,FALSE)) -> Verwaltung | J13: =IF(VLOOKUP($F$3,$BA$13:$IV$18,2,FALSE)<=0,"",VLOOKUP($F$3,$BA$13:$IV$18,2,FALSE)) -> 1 | L13: =IF(VLOOKUP($F$3,$BA$13:$IV$18,2,FALSE)<=0,"",VLOOKUP($F$3,$BA$13:$IV$18,2,FALSE)) -> 1 | N13: =IF(VLOOKUP($F$3,$BA$13:$IV$18,4,FALSE)<=0,"",VLOOKUP($F$3,$BA$13:$IV$18,4,FALSE)) -> 2 | P13: =IF(VLOOKUP($F$3,$BA$13:$IV$18,5,FALSE)<=0,"",VLOOKUP($F$3,$BA$13:$IV$18,5,FALSE)) -> 6 | R13: =IF(VLOOKUP($F$3,$BA$13:$IV$18,6,FALSE)<=0,"",VLOOKUP($F$3,$BA$13:$IV$18,6,FALSE)) -> 1400 | T13: =IF(VLOOKUP($F$3,$BA$13:$IV$18,7,FALSE)<=0,"",VLOOKUP($F$3,$BA$13:$IV$18,7,FALSE)) -> 30 | V13: =IF(VLOOKUP($F$3,$BA$13:$IV$18,8,FALSE)<=0,"",VLOOKUP($F$3,$BA$13:$IV$18,8,FALSE)) -> 40 | X13: =IF(VLOOKUP($F$3,$BA$13:$IV$18,9,FALSE)<=0,"",VLOOKUP($F$3,$BA$13:$IV$18,9,FALSE)) -> Mmv | Z13: =IF(VLOOKUP($F$3,$BA$13:$IV$18,10,FALSE)<=0,"",VLOOKUP($F$3,$BA$13:$IV$18,10,FALSE)) ->  | AA13: =IF(VLOOKUP($F$3,$BA$13:$IV$18,60,FALSE)<=0,"",VLOOKUP($F$3,$BA$13:$IV$18,60,FALSE)) -> X | AB13: =IF(VLOOKUP($F$3,$BA$13:$IV$18,66,FALSE)<=0,"",VLOOKUP($F$3,$BA$13:$IV$18,66,FALSE)) -> X | AC13: =IF(VLOOKUP($F$3,$BA$13:$IV$18,72,FALSE)<=0,"",VLOOKUP($F$3,$BA$13:$IV$18,72,FALSE)) ->  | AD13: =IF(VLOOKUP($F$3,$BA$13:$IV$18,78,FALSE)<=0,"",VLOOKUP($F$3,$BA$13:$IV$18,78,FALSE)) -> X | BA13: GHS | BB13: 1 | BC13: Verwaltung | BD13: 2 | BE13: 6 | BF13: 1400 | BG13: 30 | BH13: 40 | BI13: Mmv | BK13: GHS | BL13: GS 1 | BM13: GS 2 | BN13: GS 3 | BO13: 2 | BP13: Buchhaltung | BQ13: 1 | BR13: 3 | BS13: 1400 | BT13: 40 | BU13: 40 | BV13: Mmv | BX13: 3 | BY13: Produktion | BZ13: 1 | CA13: 3 | CB13: 1405 | CC13: 30 | CD13: 30 | CE13: Mmv | CG13: 4 | CH13: Versand | CI13: 1 | CJ13: 3 | CK13: 1400 | CL13: 30 | CM13: 30 | CN13: Mmv | CP13: 5 | CQ13: Verkauf | CR13: 1 | CS13: 3 | CT13: 1400 | CU13: 30 | CV13: 30 | CW13: Mpol | CY13: 6 | CZ13: Einkauf | DA13: 1 | DB13: 3 | DC13: 1405 | DD13: 30 | DE13: 40 | DF13: Mmv | DG13: 5 | DH13: X | DI13: X | DJ13: X | DK13: X | DL13: X | DM13: X | DN13: X | DO13: X | DR13: X | DS13: X | DV13: X | DW13: X | DZ13: X | ED13: X | EE13: X
D14: =IF(VLOOKUP($F$3,$BA$13:$IV$18,15,FALSE)<=0,"",VLOOKUP($F$3,$BA$13:$IV$18,15,FALSE)) -> 2 | H14: =IF(VLOOKUP($F$3,$BA$13:$IV$18,16,FALSE)<=0,"",VLOOKUP($F$3,$BA$13:$IV$18,16,FALSE)) -> Buchhaltung | J14: 1 | L14: 1 | N14: =IF(VLOOKUP($F$3,$BA$13:$IV$18,17,FALSE)<=0,"",VLOOKUP($F$3,$BA$13:$IV$18,17,FALSE)) -> 1 | P14: =IF(VLOOKUP($F$3,$BA$13:$IV$18,18,FALSE)<=0,"",VLOOKUP($F$3,$BA$13:$IV$18,18,FALSE)) -> 3 | R14: =IF(VLOOKUP($F$3,$BA$13:$IV$18,19,FALSE)<=0,"",VLOOKUP($F$3,$BA$13:$IV$18,19,FALSE)) -> 1400 | T14: =IF(VLOOKUP($F$3,$BA$13:$IV$18,20,FALSE)<=0,"",VLOOKUP($F$3,$BA$13:$IV$18,20,FALSE)) -> 40 | V14: =IF(VLOOKUP($F$3,$BA$13:$IV$18,21,FALSE)<=0,"",VLOOKUP($F$3,$BA$13:$IV$18,21,FALSE)) -> 40 | X14: =IF(VLOOKUP($F$3,$BA$13:$IV$18,22,FALSE)<=0,"",VLOOKUP($F$3,$BA$13:$IV$18,22,FALSE)) -> Mmv | Z14: =IF(VLOOKUP($F$3,$BA$13:$IV$18,23,FALSE)<=0,"",VLOOKUP($F$3,$BA$13:$IV$18,23,FALSE)) ->  | AA14: =IF(VLOOKUP($F$3,$BA$13:$IV$18,61,FALSE)<=0,"",VLOOKUP($F$3,$BA$13:$IV$18,61,FALSE)) -> X | AB14: =IF(VLOOKUP($F$3,$BA$13:$IV$18,67,FALSE)<=0,"",VLOOKUP($F$3,$BA$13:$IV$18,67,FALSE)) -> X | AC14: =IF(VLOOKUP($F$3,$BA$13:$IV$18,73,FALSE)<=0,"",VLOOKUP($F$3,$BA$13:$IV$18,73,FALSE)) ->  | AD14: =IF(VLOOKUP($F$3,$BA$13:$IV$18,79,FALSE)<=0,"",VLOOKUP($F$3,$BA$13:$IV$18,79,FALSE)) ->  | BA14: HS | BB14: 1 | BC14: Verwaltung | BD14: 1 | BE14: 3 | BF14: 1463 | BG14: 30 | BH14: 45 | BI14: Mmv | BK14: HS | BO14: 2 | BP14: Buchhaltung | BQ14: 1 | BR14: 3 | BS14: 1463 | BT14: 30 | BU14: 40 | BV14: Mmv | BX14: 3 | BY14: Produktion | BZ14: 1 | CA14: 3 | CB14: 1400 | CC14: 30 | CD14: 40 | CE14: Mmv | CG14: 4 | CH14: Versand | CI14: 1 | CJ14: 3 | CK14: 1400 | CL14: 30 | CM14: 40 | CN14: Mmv | CP14: 5 | CQ14: Verkauf | CR14: 1 | CS14: 3 | CT14: 1463 | CU14: 30 | CV14: 40 | CW14: Mpol | DH14: X | DI14: X | DJ14: X | DK14: X | DL14: X
D15: =IF(VLOOKUP($F$3,$BA$13:$IV$18,24,FALSE)<=0,"",VLOOKUP($F$3,$BA$13:$IV$18,24,FALSE)) -> 3 | H15: =IF(VLOOKUP($F$3,$BA$13:$IV$18,25,FALSE)<=0,"",VLOOKUP($F$3,$BA$13:$IV$18,25,FALSE)) -> Produktion | J15: 1 | L15: 1 | N15: =IF(VLOOKUP($F$3,$BA$13:$IV$18,26,FALSE)<=0,"",VLOOKUP($F$3,$BA$13:$IV$18,26,FALSE)) -> 1 | P15: =IF(VLOOKUP($F$3,$BA$13:$IV$18,27,FALSE)<=0,"",VLOOKUP($F$3,$BA$13:$IV$18,27,FALSE)) -> 3 | R15: =IF(VLOOKUP($F$3,$BA$13:$IV$18,28,FALSE)<=0,"",VLOOKUP($F$3,$BA$13:$IV$18,28,FALSE)) -> 1405 | T15: =IF(VLOOKUP($F$3,$BA$13:$IV$18,29,FALSE)<=0,"",VLOOKUP($F$3,$BA$13:$IV$18,29,FALSE)) -> 30 | V15: =IF(VLOOKUP($F$3,$BA$13:$IV$18,30,FALSE)<=0,"",VLOOKUP($F$3,$BA$13:$IV$18,30,FALSE)) -> 30 | X15: =IF(VLOOKUP($F$3,$BA$13:$IV$18,31,FALSE)<=0,"",VLOOKUP($F$3,$BA$13:$IV$18,31,FALSE)) -> Mmv | Z15: =IF(VLOOKUP($F$3,$BA$13:$IV$18,32,FALSE)<=0,"",VLOOKUP($F$3,$BA$13:$IV$18,32,FALSE)) ->  | AA15: =IF(VLOOKUP($F$3,$BA$13:$IV$18,62,FALSE)<=0,"",VLOOKUP($F$3,$BA$13:$IV$18,62,FALSE)) -> X | AB15: =IF(VLOOKUP($F$3,$BA$13:$IV$18,68,FALSE)<=0,"",VLOOKUP($F$3,$BA$13:$IV$18,68,FALSE)) ->  | AC15: =IF(VLOOKUP($F$3,$BA$13:$IV$18,74,FALSE)<=0,"",VLOOKUP($F$3,$BA$13:$IV$18,74,FALSE)) -> X | AD15: =IF(VLOOKUP($F$3,$BA$13:$IV$18,80,FALSE)<=0,"",VLOOKUP($F$3,$BA$13:$IV$18,80,FALSE)) ->  | BA15: HS/Z | BB15: Z | BC15: Haustür | BD15: 1 | BE15: 3 | BF15: 1463 | BG15: 30 | BH15: 50 | BI15: Mmv | BK15: HS | BM15: Z | BO15: 1 | BP15: Wohnung 1 | BQ15: 1 | BR15: 3 | BS15: 1463 | BT15: 40 | BU15: 50 | BV15: Mmv | BX15: 2 | BY15: Wohnung 2 | BZ15: 1 | CA15: 3 | CB15: 1463 | CC15: 40 | CD15: 50 | CE15: Mmv | CG15: 3 | CH15: Heizungsraum | CI15: 1 | CK15: 1400 | CL15: 30 | CM15: 50 | CN15: Mmv | CP15: Z | CQ15: Kellertür | CR15: 1 | CS15: 3 | CT15: 1400 | CU15: 30 | CV15: 50 | CW15: Mmv | DH15: X | DI15: X | DJ15: X | DK15: X | DL15: X | DT15: Z | DU15: I | DV15: I | DW15: I | DX15: Z
D16: =IF(VLOOKUP($F$3,$BA$13:$IV$18,33,FALSE)<=0,"",VLOOKUP($F$3,$BA$13:$IV$18,33,FALSE)) -> 4 | H16: =IF(VLOOKUP($F$3,$BA$13:$IV$18,34,FALSE)<=0,"",VLOOKUP($F$3,$BA$13:$IV$18,34,FALSE)) -> Versand | J16: 1 | L16: 1 | N16: =IF(VLOOKUP($F$3,$BA$13:$IV$18,35,FALSE)<=0,"",VLOOKUP($F$3,$BA$13:$IV$18,35,FALSE)) -> 1 | P16: =IF(VLOOKUP($F$3,$BA$13:$IV$18,36,FALSE)<=0,"",VLOOKUP($F$3,$BA$13:$IV$18,36,FALSE)) -> 3 | R16: =IF(VLOOKUP($F$3,$BA$13:$IV$18,37,FALSE)<=0,"",VLOOKUP($F$3,$BA$13:$IV$18,37,FALSE)) -> 1400 | T16: =IF(VLOOKUP($F$3,$BA$13:$IV$18,38,FALSE)<=0,"",VLOOKUP($F$3,$BA$13:$IV$18,38,FALSE)) -> 30 | V16: =IF(VLOOKUP($F$3,$BA$13:$IV$18,39,FALSE)<=0,"",VLOOKUP($F$3,$BA$13:$IV$18,39,FALSE)) -> 30 | X16: =IF(VLOOKUP($F$3,$BA$13:$IV$18,40,FALSE)<=0,"",VLOOKUP($F$3,$BA$13:$IV$18,40,FALSE)) -> Mmv | Z16: =IF(VLOOKUP($F$3,$BA$13:$IV$18,41,FALSE)<=0,"",VLOOKUP($F$3,$BA$13:$IV$18,41,FALSE)) ->  | AA16: =IF(VLOOKUP($F$3,$BA$13:$IV$18,63,FALSE)<=0,"",VLOOKUP($F$3,$BA$13:$IV$18,63,FALSE)) -> X | AB16: =IF(VLOOKUP($F$3,$BA$13:$IV$18,69,FALSE)<=0,"",VLOOKUP($F$3,$BA$13:$IV$18,69,FALSE)) ->  | AC16: =IF(VLOOKUP($F$3,$BA$13:$IV$18,75,FALSE)<=0,"",VLOOKUP($F$3,$BA$13:$IV$18,75,FALSE)) -> X | AD16: =IF(VLOOKUP($F$3,$BA$13:$IV$18,81,FALSE)<=0,"",VLOOKUP($F$3,$BA$13:$IV$18,81,FALSE)) ->  | BA16: Z/HS | BB16: Z | BC16: Haustür | BD16: 1 | BE16: 3 | BF16: 1405 | BG16: 50 | BH16: 30 | BI16: Mmv | BJ16: 4 | BK16: HS T | BM16: Z | BO16: 1 | BP16: Wohnung 1 | BQ16: 1 | BR16: 3 | BS16: 1463 | BT16: 40 | BU16: 40 | BV16: Mmv | BX16: 2 | BY16: Wohnung 2 | BZ16: 1 | CA16: 3 | CB16: 1463 | CC16: 30 | CD16: 50 | CE16: Mmv | CG16: 3 | CH16: Heizungsraum | CI16: 1 | CK16: 1400 | CL16: 30 | CM16: 40 | CN16: Mmv | CP16: Z | CQ16: Kellertür | CR16: 1 | CS16: 3 | CT16: 1400 | CU16: 30 | CV16: 30 | CW16: Mmv | DH16: X | DK16: X | DL16: X | DT16: Z | DU16: I | DV16: I | DW16: I | DX16: Z
D17: =IF(VLOOKUP($F$3,$BA$13:$IV$18,42,FALSE)<=0,"",VLOOKUP($F$3,$BA$13:$IV$18,42,FALSE)) -> 5 | H17: =IF(VLOOKUP($F$3,$BA$13:$IV$18,43,FALSE)<=0,"",VLOOKUP($F$3,$BA$13:$IV$18,43,FALSE)) -> Verkauf | J17: 1 | L17: 1 | N17: =IF(VLOOKUP($F$3,$BA$13:$IV$18,44,FALSE)<=0,"",VLOOKUP($F$3,$BA$13:$IV$18,44,FALSE)) -> 1 | P17: =IF(VLOOKUP($F$3,$BA$13:$IV$18,45,FALSE)<=0,"",VLOOKUP($F$3,$BA$13:$IV$18,45,FALSE)) -> 3 | R17: =IF(VLOOKUP($F$3,$BA$13:$IV$18,46,FALSE)<=0,"",VLOOKUP($F$3,$BA$13:$IV$18,46,FALSE)) -> 1400 | T17: =IF(VLOOKUP($F$3,$BA$13:$IV$18,47,FALSE)<=0,"",VLOOKUP($F$3,$BA$13:$IV$18,47,FALSE)) -> 30 | V17: =IF(VLOOKUP($F$3,$BA$13:$IV$18,48,FALSE)<=0,"",VLOOKUP($F$3,$BA$13:$IV$18,48,FALSE)) -> 30 | X17: =IF(VLOOKUP($F$3,$BA$13:$IV$18,49,FALSE)<=0,"",VLOOKUP($F$3,$BA$13:$IV$18,49,FALSE)) -> Mpol | Z17: =IF(VLOOKUP($F$3,$BA$13:$IV$18,50,FALSE)<=0,"",VLOOKUP($F$3,$BA$13:$IV$18,50,FALSE)) ->  | AA17: =IF(VLOOKUP($F$3,$BA$13:$IV$18,64,FALSE)<=0,"",VLOOKUP($F$3,$BA$13:$IV$18,64,FALSE)) -> X | AB17: =IF(VLOOKUP($F$3,$BA$13:$IV$18,70,FALSE)<=0,"",VLOOKUP($F$3,$BA$13:$IV$18,70,FALSE)) -> X | AC17: =IF(VLOOKUP($F$3,$BA$13:$IV$18,76,FALSE)<=0,"",VLOOKUP($F$3,$BA$13:$IV$18,76,FALSE)) ->  | AD17: =IF(VLOOKUP($F$3,$BA$13:$IV$18,82,FALSE)<=0,"",VLOOKUP($F$3,$BA$13:$IV$18,82,FALSE)) -> X | BA17: Z | BB17: Z | BC17: Haustür | BD17: 1 | BE17: 3 | BF17: 1400 | BG17: 40 | BH17: 40 | BI17: Mmv | BK17: Z | BM17: 3 | BO17: 1 | BP17: Wohnung 1 | BQ17: 1 | BR17: 3 | BS17: 1463 | BT17: 30 | BU17: 50 | BV17: Mmv | BX17: 2 | BY17: Wohnung 2 | BZ17: 1 | CA17: 3 | CB17: 1463 | CC17: 40 | CD17: 40 | CE17: Mmv | CG17: 3 | CH17: Heizungsraum | CI17: 1 | CJ17: 3 | CK17: 1400 | CL17: 30 | CM17: 30 | CN17: Mmv | CP17: Z | CQ17: Kellertür | CR17: 2 | CT17: 1400 | CU17: 30 | CV17: 40 | CW17: Mmv | DH17: Z | DI17: I | DJ17: I | DK17: I | DL17: Z | DU17: I | DW17: M
D18: =IF(VLOOKUP($F$3,$BA$13:$IV$18,51,FALSE)<=0,"",VLOOKUP($F$3,$BA$13:$IV$18,51,FALSE)) -> 6 | H18: =IF(VLOOKUP($F$3,$BA$13:$IV$18,52,FALSE)<=0,"",VLOOKUP($F$3,$BA$13:$IV$18,52,FALSE)) -> Einkauf | J18: 1 | L18: 1 | N18: =IF(VLOOKUP($F$3,$BA$13:$IV$18,53,FALSE)<=0,"",VLOOKUP($F$3,$BA$13:$IV$18,53,FALSE)) -> 1 | P18: =IF(VLOOKUP($F$3,$BA$13:$IV$18,54,FALSE)<=0,"",VLOOKUP($F$3,$BA$13:$IV$18,54,FALSE)) -> 3 | R18: =IF(VLOOKUP($F$3,$BA$13:$IV$18,55,FALSE)<=0,"",VLOOKUP($F$3,$BA$13:$IV$18,55,FALSE)) -> 1405 | T18: =IF(VLOOKUP($F$3,$BA$13:$IV$18,56,FALSE)<=0,"",VLOOKUP($F$3,$BA$13:$IV$18,56,FALSE)) -> 30 | V18: =IF(VLOOKUP($F$3,$BA$13:$IV$18,57,FALSE)<=0,"",VLOOKUP($F$3,$BA$13:$IV$18,57,FALSE)) -> 40 | X18: =IF(VLOOKUP($F$3,$BA$13:$IV$18,58,FALSE)<=0,"",VLOOKUP($F$3,$BA$13:$IV$18,58,FALSE)) -> Mmv | Z18: =IF(VLOOKUP($F$3,$BA$13:$IV$18,59,FALSE)<=0,"",VLOOKUP($F$3,$BA$13:$IV$18,59,FALSE)) -> 5 | AA18: =IF(VLOOKUP($F$3,$BA$13:$IV$18,65,FALSE)<=0,"",VLOOKUP($F$3,$BA$13:$IV$18,65,FALSE)) -> X | AB18: =IF(VLOOKUP($F$3,$BA$13:$IV$18,71,FALSE)<=0,"",VLOOKUP($F$3,$BA$13:$IV$18,71,FALSE)) -> X | AC18: =IF(VLOOKUP($F$3,$BA$13:$IV$18,77,FALSE)<=0,"",VLOOKUP($F$3,$BA$13:$IV$18,77,FALSE)) ->  | AD18: =IF(VLOOKUP($F$3,$BA$13:$IV$18,83,FALSE)<=0,"",VLOOKUP($F$3,$BA$13:$IV$18,83,FALSE)) -> X | BA18: SP | BB18: 1 | BC18: Haustür | BD18: 1 | BE18: 3 | BF18: 1400 | BG18: 30 | BH18: 30 | BI18: Mmv | BO18: 1 | BP18: Wohnung | BQ18: 1 | BR18: 3 | BS18: 1463 | BT18: 30 | BU18: 30 | BV18: Mmv | BX18: 1 | BY18: Garage | BZ18: 1 | CB18: 1410 | CD18: 30 | CE18: Mmv

Sheet Schließplan
A1: GHS
A2: HS | F2: Fachhändler: | M2: Anzahl
A3: HS/Z
A4: Z/HS
A5: Z | B5: Anlagenart: | D5: GHS | M5: rdnete Schlüssel
A6: SP | B6: System: | D6: SI6
A7: SI6 | B7: Kunde:
A8: 2VS
A9: 3VS
A10: CARAT S1 | B10: Kom.:
A11: CARAT S3 | B11: Datum: | M11: Übergeo
A12: CARAT S4 | B12: WILKA - VORSPRUNG DURCH QUALITÄT | F12: .
A13: CARAT S5 | B13: Position | C13: Schließungs- nummer | D13: Türnummer | E13: Raumbezeichnung | F13: Stückzahl | H13: Artikel | J13: Länge | L13: Färbung
A14: TH6 | F14: Zylinder | G14: Schlüssel | I14: Dornmaß | J14: A Aussen | K14: B Innen | M14: ZAS
A15: 2VE
A16: 3VE
A17: CARAT P1
A18: CARAT P3
A19: Standard
A20: HSR
A21: STR
A22: CARAT
A3000: =VLOOKUP($D$6,Systemaufstellung!$A$4:$CA$25,2,FALSE) -> 1399
A3001: =VLOOKUP($D$6,Systemaufstellung!$A$4:$CA$25,3,FALSE) -> 1400
A3002: =VLOOKUP($D$6,Systemaufstellung!$A$4:$CA$25,4,FALSE) -> 1463
A3003: =VLOOKUP($D$6,Systemaufstellung!$A$4:$CA$25,5,FALSE) -> 1408
A3004: =VLOOKUP($D$6,Systemaufstellung!$A$4:$CA$25,6,FALSE) -> 1478
A3005: =VLOOKUP($D$6,Systemaufstellung!$A$4:$CA$25,7,FALSE) -> 1479
A3006: =VLOOKUP($D$6,Systemaufstellung!$A$4:$CA$25,8,FALSE) -> 1480
A3007: =VLOOKUP($D$6,Systemaufstellung!$A$4:$CA$25,9,FALSE) -> 1481
A3008: =VLOOKUP($D$6,Systemaufstellung!$A$4:$CA$25,10,FALSE) -> 1483
A3009: =VLOOKUP($D$6,Systemaufstellung!$A$4:$CA$25,11,FALSE) -> 1488
A3010: =VLOOKUP($D$6,Systemaufstellung!$A$4:$CA$25,12,FALSE) -> 1489
A3011: =VLOOKUP($D$6,Systemaufstellung!$A$4:$CA$25,13,FALSE) -> 1405
A3012: =VLOOKUP($D$6,Systemaufstellung!$A$4:$CA$25,14,FALSE) -> 1406
A3013: =VLOOKUP($D$6,Systemaufstellung!$A$4:$CA$25,15,FALSE) -> 1407
A3014: =VLOOKUP($D$6,Systemaufstellung!$A$4:$CA$25,16,FALSE) -> 1484
A3015: =VLOOKUP($D$6,Systemaufstellung!$A$4:$CA$25,17,FALSE) -> 1473
A3016: =VLOOKUP($D$6,Systemaufstellung!$A$4:$CA$25,18,FALSE) -> 1312
A3017: =VLOOKUP($D$6,Systemaufstellung!$A$4:$CA$25,19,FALSE) -> 1319
A3018: =VLOOKUP($D$6,Systemaufstellung!$A$4:$CA$25,20,FALSE) -> 1398
A3019: =VLOOKUP($D$6,Systemaufstellung!$A$4:$CA$25,21,FALSE) -> 1410
A3020: =VLOOKUP($D$6,Systemaufstellung!$A$4:$CA$25,22,FALSE) -> 1415
A3021: =VLOOKUP($D$6,Systemaufstellung!$A$4:$CA$25,24,FALSE) -> B405*
A3022: =VLOOKUP($D$6,Systemaufstellung!$A$4:$CA$25,25,FALSE) -> B406*
A3023: =VLOOKUP($D$6,Systemaufstellung!$A$4:$CA$25,26,FALSE) -> B408*
A3024: =VLOOKUP($D$6,Systemaufstellung!$A$4:$CA$25,27,FALSE) -> B410*
A3025: =VLOOKUP($D$6,Systemaufstellung!$A$4:$CA$25,28,FALSE) -> B463*
A3026: =VLOOKUP($D$6,Systemaufstellung!$A$4:$CA$25,29,FALSE) -> D400
A3027: =VLOOKUP($D$6,Systemaufstellung!$A$4:$CA$25,30,FALSE) -> D405
A3028: =VLOOKUP($D$6,Systemaufstellung!$A$4:$CA$25,31,FALSE) -> D406
A3029: =VLOOKUP($D$6,Systemaufstellung!$A$4:$CA$25,32,FALSE) -> D408
A3030: =VLOOKUP($D$6,Systemaufstellung!$A$4:$CA$25,33,FALSE) -> D410
A3031: =VLOOKUP($D$6,Systemaufstellung!$A$4:$CA$25,34,FALSE) -> D463
A3032: =VLOOKUP($D$6,Systemaufstellung!$A$4:$CA$25,35,FALSE) -> K400
A3033: =VLOOKUP($D$6,Systemaufstellung!$A$4:$CA$25,36,FALSE) -> K405
A3034: =VLOOKUP($D$6,Systemaufstellung!$A$4:$CA$25,37,FALSE) -> K406
A3035: =VLOOKUP($D$6,Systemaufstellung!$A$4:$CA$25,38,FALSE) -> K408
A3036: =VLOOKUP($D$6,Systemaufstellung!$A$4:$CA$25,39,FALSE) -> K410
A3037: =VLOOKUP($D$6,Systemaufstellung!$A$4:$CA$25,40,FALSE) -> K463
A3038: =VLOOKUP($D$6,Systemaufstellung!$A$4:$CA$25,41,FALSE) -> G400
A3039: =VLOOKUP($D$6,Systemaufstellung!$A$4:$CA$25,42,FALSE) -> G405
A3040: =VLOOKUP($D$6,Systemaufstellung!$A$4:$CA$25,43,FALSE) -> G406
A3041: =VLOOKUP($D$6,Systemaufstellung!$A$4:$CA$25,44,FALSE) -> G408
A3042: =VLOOKUP($D$6,Systemaufstellung!$A$4:$CA$25,45,FALSE) -> G410
A3043: =VLOOKUP($D$6,Systemaufstellung!$A$4:$CA$25,46,FALSE) -> G463
A3044: =VLOOKUP($D$6,Systemaufstellung!$A$4:$CA$25,47,FALSE) -> 2201
A3045: =VLOOKUP($D$6,Systemaufstellung!$A$4:$CA$25,48,FALSE) -> 1250
A3046: =VLOOKUP($D$6,Systemaufstellung!$A$4:$CA$25,49,FALSE) -> 1251
A3047: =VLOOKUP($D$6,Systemaufstellung!$A$4:$CA$25,50,FALSE) -> 1253
A3048: =VLOOKUP($D$6,Systemaufstellung!$A$4:$CA$25,51,FALSE) -> 500
A3049: =VLOOKUP($D$6,Systemaufstellung!$A$4:$CA$25,52,FALSE) -> 500F
A3050: =VLOOKUP($D$6,Systemaufstellung!$A$4:$CA$25,53,FALSE) -> 501
A3051: =VLOOKUP($D$6,Systemaufstellung!$A$4:$CA$25,54,FALSE) -> 503
A3052: =VLOOKUP($D$6,Systemaufstellung!$A$4:$CA$25,55,FALSE) -> 515
A3053: =VLOOKUP($D$6,Systemaufstellung!$A$4:$CA$25,56,FALSE) -> 560
A3054: =VLOOKUP($D$6,Systemaufstellung!$A$4:$CA$25,57,FALSE) -> 580
A3055: =VLOOKUP($D$6,Systemaufstellung!$A$4:$CA$25,58,FALSE) -> 586
A3056: =VLOOKUP($D$6,Systemaufstellung!$A$4:$CA$25,59,FALSE) -> 587
A3057: =VLOOKUP($D$6,Systemaufstellung!$A$4:$CA$25,60,FALSE) -> 2530
A3058: =VLOOKUP($D$6,Systemaufstellung!$A$4:$CA$25,61,FALSE) -> 2532
A3059: =VLOOKUP($D$6,Systemaufstellung!$A$4:$CA$25,62,FALSE) -> 2534
A3060: =VLOOKUP($D$6,Systemaufstellung!$A$4:$CA$25,63,FALSE) -> 2613
A3061: =VLOOKUP($D$6,Systemaufstellung!$A$4:$CA$25,64,FALSE) -> 516
A3062: =VLOOKUP($D$6,Systemaufstellung!$A$4:$CA$25,65,FALSE) -> 519
A3063: =VLOOKUP($D$6,Systemaufstellung!$A$4:$CA$25,66,FALSE) -> 520
A3064: =VLOOKUP($D$6,Systemaufstellung!$A$4:$CA$25,67,FALSE) -> 529
A3065: =VLOOKUP($D$6,Systemaufstellung!$A$4:$CA$25,68,FALSE) -> 530
A3066: =VLOOKUP($D$6,Systemaufstellung!$A$4:$CA$25,69,FALSE) -> 541
A3067: =VLOOKUP($D$6,Systemaufstellung!$A$4:$CA$25,70,FALSE) -> 542
A3068: =VLOOKUP($D$6,Systemaufstellung!$A$4:$CA$25,71,FALSE) -> 543
A3069: =VLOOKUP($D$6,Systemaufstellung!$A$4:$CA$25,72,FALSE) -> 544
A3070: =VLOOKUP($D$6,Systemaufstellung!$A$4:$CA$25,73,FALSE) -> 1304
A3071: =VLOOKUP($D$6,Systemaufstellung!$A$4:$CA$25,74,FALSE) -> 1307
A3072: =VLOOKUP($D$6,Systemaufstellung!$A$4:$CA$25,75,FALSE) -> 1380
A3073: =VLOOKUP($D$6,Systemaufstellung!$A$4:$CA$25,76,FALSE) -> 1401
A3074: =VLOOKUP($D$6,Systemaufstellung!$A$4:$CA$25,77,FALSE) -> 1413
A3075: =VLOOKUP($D$6,Systemaufstellung!$A$4:$CA$25,78,FALSE) -> 1477
A3076: =VLOOKUP($D$6,Systemaufstellung!$A$4:$CA$25,79,FALSE) -> 1482
A3077: =VLOOKUP($D$6,Systemaufstellung!$A$4:$DA$25,80,FALSE) -> 1486
A3078: =VLOOKUP($D$6,Systemaufstellung!$A$4:$DA$25,81,FALSE) -> 1487
A3079: =VLOOKUP($D$6,Systemaufstellung!$A$4:$DA$25,82,FALSE) -> E204
A3080: =VLOOKUP($D$6,Systemaufstellung!$A$4:$DA$25,83,FALSE) -> E201
A3081: =VLOOKUP($D$6,Systemaufstellung!$A$4:$DA$25,84,FALSE) -> E203
A3082: =VLOOKUP($D$6,Systemaufstellung!$A$4:$DA$25,85,FALSE) -> E206
A3083: =VLOOKUP($D$6,Systemaufstellung!$A$4:$DA$25,86,FALSE) -> E207
A3084: =VLOOKUP($D$6,Systemaufstellung!$A$4:$DA$25,87,FALSE) -> E213
A3085: =VLOOKUP($D$6,Systemaufstellung!$A$4:$DA$25,88,FALSE) -> E214
A3086: =VLOOKUP($D$6,Systemaufstellung!$A$4:$DA$25,89,FALSE) -> E215
A3087: =VLOOKUP($D$6,Systemaufstellung!$A$4:$DA$25,90,FALSE) -> E219
A3088: =VLOOKUP($D$6,Systemaufstellung!$A$4:$DA$25,91,FALSE) -> E831
A3089: =VLOOKUP($D$6,Systemaufstellung!$A$4:$DA$25,92,FALSE) -> E832
A3090: =VLOOKUP($D$6,Systemaufstellung!$A$4:$DA$25,93,FALSE) -> E820
A3091: =VLOOKUP($D$6,Systemaufstellung!$A$4:$DA$25,94,FALSE) -> E821
A3092: =VLOOKUP($D$6,Systemaufstellung!$A$4:$DA$25,95,FALSE) -> E826
A3093: =VLOOKUP($D$6,Systemaufstellung!$A$4:$DA$25,96,FALSE) -> E931
A3094: =VLOOKUP($D$6,Systemaufstellung!$A$4:$DA$25,97,FALSE) -> E932
A3095: =VLOOKUP($D$6,Systemaufstellung!$A$4:$DA$25,98,FALSE) -> E935
A3096: =VLOOKUP($D$6,Systemaufstellung!$A$4:$DA$25,99,FALSE) -> E936
A3097: =VLOOKUP($D$6,Systemaufstellung!$A$4:$DA$25,100,FALSE) -> E920
A3098: =VLOOKUP($D$6,Systemaufstellung!$A$4:$DA$25,101,FALSE) -> E921
A3099: =VLOOKUP($D$6,Systemaufstellung!$A$4:$DA$25,102,FALSE) -> E926
A3100: =VLOOKUP($D$6,Systemaufstellung!$A$4:$DA$25,103,FALSE) -> E822
A3101: =VLOOKUP($D$6,Systemaufstellung!$A$4:$DA$25,104,FALSE) -> E837
A3102: =VLOOKUP($D$6,Systemaufstellung!$A$4:$DA$25,105,FALSE) -> E234
A3103: =VLOOKUP($D$6,Systemaufstellung!$A$4:$FA$25,106,FALSE) -> E850
A3104: =VLOOKUP($D$6,Systemaufstellung!$A$4:$FA$25,107,FALSE) -> E852
A3105: =VLOOKUP($D$6,Systemaufstellung!$A$4:$FA$25,108,FALSE) -> E855
A3106: =VLOOKUP($D$6,Systemaufstellung!$A$4:$FA$25,109,FALSE) -> E950
A3107: =VLOOKUP($D$6,Systemaufstellung!$A$4:$FA$25,110,FALSE) -> E295
A3108: =VLOOKUP($D$6,Systemaufstellung!$A$4:$FA$25,111,FALSE) -> E296
A3109: =VLOOKUP($D$6,Systemaufstellung!$A$4:$FA$25,112,FALSE) -> E297
A3110: =VLOOKUP($D$6,Systemaufstellung!$A$4:$FA$25,113,FALSE) -> SE66
A3111: =VLOOKUP($D$6,Systemaufstellung!$A$4:$FA$25,114,FALSE) -> E891
A3112: =VLOOKUP($D$6,Systemaufstellung!$A$4:$FA$25,115,FALSE) -> E892
A3113: =VLOOKUP($D$6,Systemaufstellung!$A$4:$FA$25,116,FALSE) -> E894
A3114: =VLOOKUP($D$6,Systemaufstellung!$A$4:$FA$25,117,FALSE) -> E896
A3115: =VLOOKUP($D$6,Systemaufstellung!$A$4:$FA$25,118,FALSE) -> E898
A3116: =VLOOKUP($D$6,Systemaufstellung!$A$4:$FA$25,119,FALSE) -> E624ST
A3117: =VLOOKUP($D$6,Systemaufstellung!$A$4:$FA$25,120,FALSE) -> E624UP
A3118: =VLOOKUP($D$6,Systemaufstellung!$A$4:$FA$25,121,FALSE) -> E823
A3119: =VLOOKUP($D$6,Systemaufstellung!$A$4:$FA$25,122,FALSE) -> E825
A3120: =VLOOKUP($D$6,Systemaufstellung!$A$4:$FA$25,123,FALSE) -> E681
A3121: =VLOOKUP($D$6,Systemaufstellung!$A$4:$FA$25,124,FALSE) -> M550*
A3122: =VLOOKUP($D$6,Systemaufstellung!$A$4:$FA$25,125,FALSE) -> M551*
A3123: =VLOOKUP($D$6,Systemaufstellung!$A$4:$FA$25,126,FALSE) -> M552*
A3124: =VLOOKUP($D$6,Systemaufstellung!$A$4:$FA$25,127,FALSE) -> M553*
A3125: =VLOOKUP($D$6,Systemaufstellung!$A$4:$FA$25,128,FALSE) -> M554*
A3126: =VLOOKUP($D$6,Systemaufstellung!$A$4:$FA$25,129,FALSE) -> M555*
A3127: =VLOOKUP($D$6,Systemaufstellung!$A$4:$FA$25,130,FALSE) -> M556*
A3128: =VLOOKUP($D$6,Systemaufstellung!$A$4:$FA$25,131,FALSE) -> M557*
A3129: =VLOOKUP($D$6,Systemaufstellung!$A$4:$FA$25,132,FALSE) -> M558*
A3130: =VLOOKUP($D$6,Systemaufstellung!$A$4:$FA$25,133,FALSE) -> M540
A3131: =VLOOKUP($D$6,Systemaufstellung!$A$4:$FA$25,134,FALSE) -> M541

Sheet Artikelliste
A1: Schließanlagen-Artikel
A3: Schließanlagensysteme | Q3: Beschreibung (mit * gekennzeichnete Artikel sind in Vorbereitung)
A5: Doppelzylinder
C6: 1399 | D6: 1399 | F6: 1399 | Q6: Profildoppelzylinder mit Doppelfunktion, Grundlänge 30/30, Messing matt vernickelt, 3 Neusilberschlüssel
A7: 1400 | B7: 1400 | C7: 1400 | D7: 1400 | E7: 1400 | F7: 1400 | G7: 1400 | H7: 1400 | I7: 3600 | J7: 3600 | K7: 3600 | L7: 3600 | M7: 3600 | N7: 3600 | O7: 3600 | P7: 2122 | Q7: Profildoppelzylinder, Grundlänge 30/30, Messing matt vernickelt, 3 Neusilberschlüssel
A8: 1463 | B8: 1463 | C8: 1463 | D8: 1463 | E8: 1463 | F8: 1463 | G8: 1463 | H8: 1463 | I8: 3663 | J8: 3663 | K8: 3663 | L8: 3663 | M8: 3663 | N8: 3663 | O8: 3663 | P8: 2163 | Q8: Profildoppelzylinder, mit Not- und Gefahrenfunktion, Grundlänge 30/30, Messing matt vernickelt, 3 Neusilberschlüssel
A9: 1408 | B9: 1408 | C9: 1408 | D9: 1408 | E9: 1408 | F9: 1408 | G9: 1408 | H9: 1408 | I9: 3608 | J9: 3608 | K9: 3608 | L9: 3608 | M9: 3608 | N9: 3608 | O9: 3608 | P9: 2108 | Q9: Profildoppelzylinder, mit Freilauffunktion für Getriebeschlösser (FZG), Grundlänge 30/30, Messing matt vernickelt, 3 Neusilberschlüssel
A10: 1478 | C10: 1478 | D10: 1478 | F10: 1478 | P10: 2178 | Q10: Profildoppelzylinder schließbar nur mit beidseitig steckenden verschiedenen Schlüsseln, Grundlänge 30/30, Messing matt vernickelt, 3 Neusilberschlüssel
A11: 1479 | C11: 1479 | D11: 1479 | F11: 1479 | P11: 2179 | Q11: Profildoppelzylinder, mit Gefahrenschlüssel-einrichtung, Grundlänge 30/30, Messing matt vernickelt, 3 Neusilberschlüssel
A12: 1480 | B12: 1480 | C12: 1480 | D12: 1480 | E12: 1480 | F12: 1480 | G12: 1480 | H12: 1480 | I12: 3680 | J12: 3680 | K12: 3680 | L12: 3680 | M12: 3680 | N12: 3680 | O12: 3680 | P12: 2180 | Q12: Profildoppelzylinder, Grundlänge 26/26, einseitig blind, Messing matt vernickelt, 3 Neusilberschlüssel
A13: 1481 | B13: 1481 | C13: 1481 | D13: 1481 | E13: 1481 | F13: 1481 | G13: 1481 | H13: 1481 | I13: 3681 | J13: 3681 | K13: 3681 | L13: 3681 | M13: 3681 | N13: 3681 | O13: 3681 | P13: 2181 | Q13: Profildoppelzylinder, Grundlänge 26/30, Messing matt vernickelt, 3 Neusilberschlüssel
A14: 1483 | B14: 1483 | C14: 1483 | D14: 1483 | E14: 1483 | F14: 1483 | G14: 1483 | H14: 1483 | I14: 3683 | J14: 3683 | K14: 3683 | L14: 3683 | M14: 3683 | N14: 3683 | O14: 3683 | P14: 2183 | Q14: Profildoppelzylinder, mit Not- und Gefahrenfunktion, Grundlänge 26/35, Messing matt vernickelt, 3 Neusilberschlüssel
A15: 1488 | B15: 1488 | C15: 1488 | D15: 1488 | E15: 1488 | F15: 1488 | G15: 1488 | H15: 1488 | I15: 3688 | J15: 3688 | K15: 3688 | L15: 3688 | M15: 3688 | N15: 3688 | O15: 3688 | P15: 2188 | Q15: Profilkurzzylinder, Grundlänge 26/26, Messing matt vernickelt, 3 Neusilberschlüssel
A16: 1489 | B16: 1489 | C16: 1489 | D16: 1489 | E16: 1489 | F16: 1489 | G16: 1489 | H16: 1489 | I16: 3689 | J16: 3689 | K16: 3689 | L16: 3689 | M16: 3689 | N16: 3689 | O16: 3689 | P16: 2189 | Q16: Profildoppelzylinder, Grundlänge 30/30, Messing matt vernickelt, 3 Neusilberschlüssel, eine Seite Notöffnung, andere Seite Schließfunktion
A17: Knaufzylinder
A18: 1405 | B18: 1405 | C18: 1405 | D18: 1405 | E18: 1405 | F18: 1405 | G18: 1405 | H18: 1405 | I18: 3605 | J18: 3605 | K18: 3605 | L18: 3605 | M18: 3605 | N18: 3605 | O18: 3605 | P18: 2105 | Q18: Profilknaufzylinder, Grundlänge 30/30, Messing matt vernickelt, 3 Neusilberschlüssel
A19: 1406 | B19: 1406 | C19: 1406 | D19: 1406 | E19: 1406 | F19: 1406 | G19: 1406 | H19: 1406 | I19: 3606 | J19: 3606 | K19: 3606 | L19: 3606 | M19: 3606 | N19: 3606 | O19: 3606 | P19: 3606 | Q19: Profilknaufzylinder, mit Freilauffunktion für Getriebeschlösser (FZG), Grundlänge 30/30, Messing matt vernickelt, 3 Neusilberschlüssel
A20: 1407 | B20: 1407 | C20: 1407 | D20: 1407 | E20: 1407 | F20: 1407 | G20: 1407 | H20: 1407 | I20: 3607 | J20: 3607 | K20: 3607 | L20: 3607 | M20: 3607 | N20: 3607 | O20: 3607 | P20: 2107 | Q20: Profilknaufzylinder, Grundlänge 26/26, Messing matt vernickelt, 3 Neusilberschlüssel
A21: 1484 | B21: 1484 | C21: 1484 | D21: 1484 | E21: 1484 | F21: 1484 | G21: 1484 | H21: 1484 | I21: 3684 | J21: 3684 | K21: 3684 | L21: 3684 | M21: 3684 | N21: 3684 | O21: 3684 | P21: 2184 | Q21: Profilknaufzylinder, Grundlänge 26/30, Messing matt vernickelt, 3 Neusilberschlüssel
Q22: Anti-Panik-Profilknaufzylinder, Grundlänge 30/40, für den Einsatz in Anti-Panik-Schlössern, Messing matt vernickelt, 3 Neusilberschlüssel
A23: 1473 | C23: 1473 | D23: 1473 | E23: 1473 | F23: 1473 | G23: 1473 | H23: 1473 | I23: 3673 | J23: 3673 | K23: 3673 | L23: 3673 | M23: 3673 | N23: 3673 | O23: 3673 | Q23: Profilknaufzylinder, mit Anti-Amok-Funktion, Grundlänge 30/30, Messing matt vernickelt, 3 Neusilberschlüssel
A24: Halbzylinder
A25: 1312 | B25: 1312 | C25: 1312 | D25: 1312 | E25: 1312 | F25: 1312 | G25: 1312 | H25: 1312 | I25: 3612 | J25: 3612 | K25: 3612 | L25: 3612 | M25: 3612 | N25: 3612 | O25: 3612 | P25: 2112 | Q25: Profilhalbzylinder, mit Freilauffunktion für Getriebeschlösser (FZG), Grundlänge 00/30, Messing matt vernickel, 3 Neusilberschlüssel
A26: 1319 | B26: 1319 | C26: 1319 | D26: 1319 | E26: 1319 | F26: 1319 | G26: 1319 | H26: 1319 | I26: 3619 | J26: 3619 | K26: 3619 | L26: 3619 | M26: 3619 | N26: 3619 | O26: 3619 | P26: 2119 | Q26: Profilhalbzylinder, mit zwei Gewindebohrungen M4 auf der Rückseite, Grundlänge 00/30, Messing matt vernickelt, 3 Neusilberschlüssel
C27: 1398 | D27: 1398 | F27: 1398 | Q27: Profilhalbzylinder mit Doppelfunktion, Grundlänge 00/30, Messing matt vernickelt, 3 Neusilberschlüssel
A28: 1410 | B28: 1410 | C28: 1410 | D28: 1410 | E28: 1410 | F28: 1410 | G28: 1410 | H28: 1410 | I28: 3610 | J28: 3610 | K28: 3610 | L28: 3610 | M28: 3610 | N28: 3610 | O28: 3610 | P28: 2110 | Q28: Profilhalbzylinder, Grundlänge 00/26, Messing matt vernickelt, 3 Neusilberschlüssel
A29: 1415 | B29: 1415 | C29: 1415 | D29: 1415 | E29: 1415 | F29: 1415 | G29: 1415 | H29: 1415 | I29: 3615 | J29: 3615 | K29: 3615 | L29: 3615 | M29: 3615 | N29: 3615 | O29: 3615 | P29: 2115 | Q29: Profilhalbzylinder, mit Freilauf für Schaltungen, Grundlänge 00/30, Messing matt vernickelt, 3 Neusilberschlüssel
A30: Zylinder gemäß den Richtlinien des
D31: B400 | F31: B400* | J31: B300 | L31: B300* | Q31: Profildoppelzylinder, Grundlänge 30/30, Messing matt vernickelt, 3 Neusilberschlüssel, Ausführung VdS BZ
D32: B405 | F32: B405* | J32: B305 | L32: B305* | Q32: Profilknaufzylinder, Grundlänge 30/30, Messing matt vernickelt, 3 Neusilberschlüssel, Ausführung VdS BZ
D33: B410 | F33: B410* | J33: B310 | L33: B310* | Q33: Profilhalbzylinder, Grundlänge 00/30, Messing matt vernickelt, 3 Neusilberschlüssel, Ausführung VdS BZ
D34: B463 | F34: B463* | J34: B363 | L34: B363* | Q34: Profildoppelzylinder, mit Not- und Gefahrenfunktion, Grundlänge 30/30, Messing matt vernickelt, 3 Neusilberschlüssel, Ausführung VdS BZ
A35: Zylinder zertifiziert nach DIN 18252 / DIN EN 1303
D36: D400 | F36: D400 | G36: D400 | H36: D400 | K36: D300 | L36: D300 | M36: D300 | N36: D300 | Q36: Profildoppelzylinder, Grundlänge 30/30, Messing matt vernickelt, 3 Neusilberschlüssel, Ausführung DIN
D37: D405 | F37: D405 | G37: D405 | H37: D405 | K37: D305 | L37: D305 | M37: D305 | N37: D305 | Q37: Profilknaufzylinder, Grundlänge 30/30, Messing matt vernickelt, 3 Neusilberschlüssel, Ausführung DIN
D38: D406 | F38: D406 | G38: D406 | H38: D406 | K38: D306 | L38: D306 | M38: D306 | N38: D306 | Q38: Profilknaufzylinder, mit Freilauffunktion für Getriebeschlösser (FZG), Grundlänge 30/30, Messing matt vernickelt, 3 Neusilberschlüssel, Ausführung DIN
D39: D408 | F39: D408 | G39: D408 | H39: D408 | K39: D308 | L39: D308 | M39: D308 | N39: D308 | Q39: Profildoppelzylinder, mit Freilauffunktion für Getriebeschlösser (FZG), Grundlänge 30/30, Messing matt vernickelt, 3 Neusilberschlüssel, Ausführung DIN
D40: D410 | F40: D410 | G40: D410 | H40: D410 | K40: D310 | L40: D310 | M40: D310 | N40: D310 | Q40: Profilhalbzylinder, Grundlänge 00/30, Messing matt vernickelt, 3 Neusilberschlüssel, Ausführung DIN
D41: D463 | F41: D463 | G41: D463 | H41: D463 | K41: D363 | L41: D363 | M41: D363 | N41: D363 | Q41: Profildoppelzylinder, mit Not- und Gefahrenfunktion, Grundlänge 30/30, Messing matt vernickelt, 3 Neusilberschlüssel, Ausführung DIN
A42: Zylinder gemäß den Richtlinien des (nur STR, HSR nicht möglich)
C43: K400 | D43: K400 | E43: K400 | F43: K400 | G43: K400 | H43: K400 | J43: K360 | L43: K360 | M43: K360 | N43: K360 | O43: K360 | Q43: Profildoppelzylinder, Grundlänge 30/30, Messing matt vernickelt, 3 Neusilberschlüssel, ABH SKG beidseitig
C44: K405 | D44: K405 | E44: K405 | F44: K405 | G44: K405 | H44: K405 | J44: K365 | L44: K365 | M44: K365 | N44: K365 | O44: K365 | Q44: Profilknaufzylinder, Grundlänge 30/30, Messing matt vernickelt, 3 Neusilberschlüssel, ABH SKG beidseitig
C45: K406 | D45: K406 | E45: K406 | F45: K406 | G45: K406 | H45: K406 | J45: K366 | L45: K366 | M45: K366 | N45: K366 | O45: K366 | Q45: Profilknaufzylinder, mit Freilauffunktion für Getriebeschlösser (FZG), Grundlänge 30/30, Messing matt vernickelt, 3 Neusilberschlüssel, ABH SKG beidseitig
C46: K408 | D46: K408 | E46: K408 | F46: K408 | G46: K408 | H46: K408 | J46: K368 | L46: K368 | M46: K368 | N46: K368 | O46: K368 | Q46: Profildoppelzylinder, mit Freilauffunktion für Getriebeschlösser (FZG), Grundlänge 30/30, Messing matt vernickelt, 3 Neusilberschlüssel, ABH SKG beidseitig
C47: K410 | D47: K410 | E47: K410 | F47: K410 | G47: K410 | H47: K410 | J47: K361 | L47: K361 | M47: K361 | N47: K361 | O47: K361 | Q47: Profilhalbzylinder, Grundlänge 00/26, Messing matt vernickelt, 3 Neusilberschlüssel, ABH SKG beidseitig
C48: K463 | D48: K463 | E48: K463 | F48: K463 | G48: K463 | H48: K463 | J48: K363 | L48: K363 | M48: K363 | N48: K363 | O48: K363 | Q48: Profildoppelzylinder, mit Not- und Gefahrenfunktion, Grundlänge 30/30, Messing matt vernickelt, 3 Neusilberschlüssel, ABH SKG beidseitig
A49: Zylinder gemäß den Richtlinien des
D50: G400 | E50: G400 | F50: G400 | G50: G400 | H50: G400 | J50: G360 | L50: G360 | M50: G360 | N50: G360 | O50: G360 | Q50: Profildoppelzylinder, Grundlänge 30/30, Messing matt vernickelt, 3 Neusilberschlüssel, ABH SKG einseitig
D51: G405 | E51: G405 | F51: G405 | G51: G405 | H51: G405 | J51: G365 | L51: G365 | M51: G365 | N51: G365 | O51: G365 | Q51: Profilknaufzylinder, Grundlänge 30/30, Messing matt vernickelt, 3 Neusilberschlüssel, ABH SKG einseitig
D52: G406 | E52: G406 | F52: G406 | G52: G406 | H52: G406 | J52: G366 | L52: G366 | M52: G366 | N52: G366 | O52: G366 | Q52: Profilknaufzylinder, mit Freilauffunktion für Getriebeschlösser (FZG), Grundlänge 30/30, Messing matt vernickelt, 3 Neusilberschlüssel, ABH SKG beidseitig
D53: G408 | E53: G408 | F53: G408 | G53: G408 | H53: G408 | J53: G368 | L53: G368 | M53: G368 | N53: G368 | O53: G368 | Q53: Profildoppelzylinder, mit Freilauffunktion für Getriebeschlösser (FZG), Grundlänge 30/30, Messing matt vernickelt, 3 Neusilberschlüssel, ABH SKG beidseitig
D54: G410 | E54: G410 | F54: G410 | G54: G410 | H54: G410 | J54: G361 | L54: G361 | M54: G361 | N54: G361 | O54: G361 | Q54: Profilhalbzylinder, Grundlänge 00/26, Messing matt vernickelt, 3 Neusilberschlüssel, ABH SKG einseitig
D55: G463 | E55: G463 | F55: G463 | G55: G463 | H55: G463 | J55: G363 | L55: G363 | M55: G363 | N55: G363 | O55: G363 | Q55: Profildoppelzylinder, mit Not- und Gefahrenfunktion, Grundlänge 30/30, Messing matt vernickelt, 3 Neusilberschlüssel, ABH SKG einseitig
A56: Vorhangschloß
A57: 2201 | B57: 2201 | C57: 2201 | D57: 2201 | E57: 2201 | F57: 2201 | G57: 2201 | H57: 2201 | I57: 3601 | J57: 3601 | K57: 3601 | L57: 3601 | M57: 3601 | N57: 3601 | O57: 3601 | P57: 2101 | Q57: Schweres Vorhangschloß, Schloßkörper Messing gebürstet, 30er oder 80er Niro-Bügel, 3 Neusilberschlüssel
A58: Hebelzylinder
A59: 1250 | B59: 1250 | C59: 1250 | D59: 1250 | E59: 1250 | F59: 1250 | G59: 1250 | H59: 1250 | I59: 3650 | J59: 3650 | K59: 3650 | L59: 3650 | M59: 3650 | N59: 3650 | O59: 3650 | P59: 2150 | Q59: Zylinder-Hebelschloß, Messing matt vernickelt, 3 Neusilberschlüssel
A60: 1251 | B60: 1251 | C60: 1251 | D60: 1251 | E60: 1251 | F60: 1251 | G60: 1251 | H60: 1251 | I60: 3651 | J60: 3651 | K60: 3651 | L60: 3651 | M60: 3651 | N60: 3651 | O60: 3651 | P60: 2151 | Q60: Zylinder-Hebelschloß, Schlüssel im offenem bzw. geschlossenem Zustand abziehbar, Messing matt vernickelt, 3 Neusilberschlüssel
A61: 1253 | B61: 1253 | C61: 1253 | D61: 1253 | E61: 1253 | F61: 1253 | G61: 1253 | H61: 1253 | I61: 3657 | J61: 3657 | K61: 3657 | L61: 3657 | M61: 3657 | N61: 3657 | O61: 3657 | P61: 2157 | Q61: Zylinder-Hebelschloß, Messing matt vernickelt, 3 Neusilberschlüssel, für Renz-Briefkästen, mit Hebel 50 62 059 und Befestigungsrundmutter
A62: Rundzylinder
A63: 500 | B63: 500 | C63: 500 | D63: 500 | E63: 500 | F63: 500 | G63: 500 | H63: 500 | I63: 3652 | J63: 3652 | K63: 3652 | L63: 3652 | M63: 3652 | N63: 3652 | O63: 3652 | P63: 2152 | Q63: Aussenzylinder für Kastenschlösser
A64: 500F | B64: 500F | C64: 500F | D64: 500F | E64: 500F | F64: 500F | G64: 500F | H64: 500F | I64: 3632 | J64: 3632 | K64: 3632 | L64: 3632 | M64: 3632 | N64: 3632 | O64: 3632 | P64: 2132 | Q64: Rundzylinder Durchmesser 32mm für Garagentore
A65: 501 | B65: 501 | C65: 501 | D65: 501 | F65: 501 | G65: 501 | H65: 501 | P65: 2155 | Q65: Aussenzylinder für Kastenschloss Nr. 2611
A66: 503 | B66: 503 | C66: 503 | D66: 503 | F66: 503 | G66: 503 | H66: 503 | I66: 3603 | J66: 3603 | K66: 3603 | L66: 3603 | M66: 3603 | N66: 3603 | P66: 2103 | Q66: Aussenzylinder für Kastenschloss Nr. 2621
A67: 515 | B67: 515 | C67: 515 | D67: 515 | E67: 515 | F67: 515 | G67: 515 | H67: 515 | I67: 3685 | J67: 3685 | K67: 3685 | L67: 3685 | M67: 3685 | N67: 3685 | O67: 3685 | P67: 2185 | Q67: Rundzylinder für Kastenschlösser
A68: 560 | B68: 560 | C68: 560 | D68: 560 | F68: 560 | G68: 560 | H68: 560 | I68: 3660 | J68: 3660 | K68: 3660 | L68: 3660 | M68: 3660 | N68: 3660 | P68: 2160 | Q68: Kontaktzylinder für Aufzüge
A69: 580 | B69: 580 | C69: 580 | D69: 580 | E69: 580 | F69: 580 | G69: 580 | H69: 580 | I69: 3690 | J69: 3690 | K69: 3690 | L69: 3690 | M69: 3690 | N69: 3690 | O69: 3690 | P69: 2190 | Q69: Rundzylinder für Kastenschlösser
A70: 586 | B70: 586 | C70: 586 | D70: 586 | F70: 586 | G70: 586 | H70: 586 | P70: 2154 | Q70: Rundzylinder Durchmesser 30mm für Garagentore aus Stahl
A71: 587 | B71: 587 | C71: 587 | D71: 587 | F71: 587 | G71: 587 | H71: 587 | P71: 2153 | Q71: Rundzylinder Durchmesser 30mm für Garagentore aus Holz
A72: 2530 | B72: 2530 | C72: 2530 | D72: 2530 | F72: 2530 | G72: 2530 | H72: 2530 | I72: 3616 | J72: 3616 | K72: 3616 | L72: 3616 | M72: 3616 | N72: 3616 | P72: 2116 | Q72: Aussen- und Innenzylinder für Zusatzschloss Nr. 2516
A73: 2532 | B73: 2532 | C73: 2532 | D73: 2532 | F73: 2532 | G73: 2532 | H73: 2532 | I73: 3624 | J73: 3624 | K73: 3624 | L73: 3624 | M73: 3624 | N73: 3624 | P73: 2124 | Q73: Aussen- und Innenzylinder für Kastenschloss Nr. 542 und Nr. 2524
A74: 2534 | B74: 2534 | C74: 2534 | D74: 2534 | F74: 2534 | G74: 2534 | H74: 2534 | I74: 3656 | J74: 3656 | K74: 3656 | L74: 3656 | M74: 3656 | N74: 3656 | P74: 2156 | Q74: Aussen- und Innenzylinder für Nr. 2616
A75: 2613 | B75: 2613 | C75: 2613 | D75: 2613 | F75: 2613 | G75: 2613 | H75: 2613 | I75: 3613 | J75: 3613 | K75: 3613 | L75: 3613 | M75: 3613 | N75: 3613 | P75: 2113 | Q75: Aussen- und Innenzylinder für Nr. 2626
A76: Möbelschlösser und Zubehör
A77: 516 | B77: 516 | C77: 516 | D77: 516 | E77: 516 | F77: 516 | G77: 516 | H77: 516 | I77: 516 | J77: 516 | K77: 516 | L77: 516 | M77: 516 | N77: 516 | O77: 516 | P77: 516 | Q77: Drehstangenschloss 40mm Dorn für geteilte Drehstangen
A78: 519 | B78: 519 | C78: 519 | D78: 519 | E78: 519 | F78: 519 | G78: 519 | H78: 519 | I78: 519 | J78: 519 | K78: 519 | L78: 519 | M78: 519 | N78: 519 | O78: 519 | P78: 519 | Q78: Möbelriegelschloss 40mm Dorn
A79: 520 | B79: 520 | C79: 520 | D79: 520 | E79: 520 | F79: 520 | G79: 520 | H79: 520 | I79: 520 | J79: 520 | K79: 520 | L79: 520 | M79: 520 | N79: 520 | O79: 520 | P79: 520 | Q79: feststehende Olive, matt vernickelt
A80: 529 | B80: 529 | C80: 529 | D80: 529 | E80: 529 | F80: 529 | G80: 529 | H80: 529 | I80: 529 | J80: 529 | K80: 529 | L80: 529 | M80: 529 | N80: 529 | O80: 529 | P80: 529 | Q80: Olive abschließbar für Halbzylinder
A81: 530 | B81: 530 | C81: 530 | D81: 530 | E81: 530 | F81: 530 | G81: 530 | H81: 530 | I81: 530 | J81: 530 | K81: 530 | L81: 530 | M81: 530 | N81: 530 | O81: 530 | P81: 530 | Q81: drehbare Olive, matt vernickelt
A82: 541 | B82: 541 | C82: 541 | D82: 541 | E82: 541 | F82: 541 | G82: 541 | H82: 541 | I82: 541 | J82: 541 | K82: 541 | L82: 541 | M82: 541 | N82: 541 | O82: 541 | P82: 541 | Q82: Hebelschloß für Halbzylinder, ohne Schließzwang
A83: 542 | B83: 542 | C83: 542 | D83: 542 | E83: 542 | F83: 542 | G83: 542 | H83: 542 | I83: 542 | J83: 542 | K83: 542 | L83: 542 | M83: 542 | N83: 542 | O83: 542 | P83: 542 | Q83: Hebelschloß für Halbzylinder, mit Schließzwang
A84: 543 | B84: 543 | C84: 543 | D84: 543 | E84: 543 | F84: 543 | G84: 543 | H84: 543 | I84: 543 | J84: 543 | K84: 543 | L84: 543 | M84: 543 | N84: 543 | O84: 543 | P84: 543 | Q84: Hebelschloß (Schließweg 180°)
A85: 544 | B85: 544 | C85: 544 | D85: 544 | E85: 544 | F85: 544 | G85: 544 | H85: 544 | I85: 544 | J85: 544 | K85: 544 | L85: 544 | M85: 544 | N85: 544 | O85: 544 | P85: 544 | Q85: Zubehörset für Art. 541 - 543 (Glastürverschluss)
A86: Zylinder ohne Schließfunktion
A87: 1304 | B87: 1304 | C87: 1304 | D87: 1304 | E87: 1304 | F87: 1304 | G87: 1304 | H87: 1304 | I87: 1304 | J87: 1304 | K87: 1304 | L87: 1304 | M87: 1304 | N87: 1304 | O87: 1304 | P87: 1304 | Q87: Knaufzylinder, beidseitig Knauf, Messing matt vernickelt
A88: 1307 | B88: 1307 | C88: 1307 | D88: 1307 | E88: 1307 | F88: 1307 | G88: 1307 | H88: 1307 | I88: 1307 | J88: 1307 | K88: 1307 | L88: 1307 | M88: 1307 | N88: 1307 | O88: 1307 | P88: 1307 | Q88: Knaufzylinder, asymetrisch, beidseitig Knauf, Messing matt vernickelt
A89: 1380 | B89: 1380 | C89: 1380 | D89: 1380 | E89: 1380 | F89: 1380 | G89: 1380 | H89: 1380 | I89: 1380 | J89: 1380 | K89: 1380 | L89: 1380 | M89: 1380 | N89: 1380 | O89: 1380 | P89: 1380 | Q89: Knaufzylinder, einseitig Knauf, andere Seite blind, Messing matt vernickelt
A90: 1401 | B90: 1401 | C90: 1401 | D90: 1401 | E90: 1401 | F90: 1401 | G90: 1401 | H90: 1401 | I90: 1401 | J90: 1401 | K90: 1401 | L90: 1401 | M90: 1401 | N90: 1401 | O90: 1401 | P90: 1401 | Q90: Profilblindzylinder, Grundlänge 26/26 oder 00/26, Messing matt vernickelt
A91: 1413 | B91: 1413 | C91: 1413 | D91: 1413 | E91: 1413 | F91: 1413 | G91: 1413 | H91: 1413 | I91: 1413 | J91: 1413 | K91: 1413 | L91: 1413 | M91: 1413 | N91: 1413 | O91: 1413 | P91: 1413 | Q91: Knaufhalbzylinder, Grundlänge 00/30, Messing matt vernickelt
A92: 1477 | B92: 1477 | C92: 1477 | D92: 1477 | E92: 1477 | F92: 1477 | G92: 1477 | H92: 1477 | I92: 1477 | J92: 1477 | K92: 1477 | L92: 1477 | M92: 1477 | N92: 1477 | O92: 1477 | P92: 1477 | Q92: Knaufzylinder mit optischer Verschlussanzeige, Grundlänge 30/30, Messing matt vernickelt
A93: 1482 | B93: 1482 | C93: 1482 | D93: 1482 | E93: 1482 | F93: 1482 | G93: 1482 | H93: 1482 | I93: 1482 | J93: 1482 | K93: 1482 | L93: 1482 | M93: 1482 | N93: 1482 | O93: 1482 | P93: 1482 | Q93: Doppelzylinder, Grundlänge 30/30, Messing matt vernickelt, einseitig blind, andere Seite Notöffnung
A94: 1486 | B94: 1486 | C94: 1486 | D94: 1486 | E94: 1486 | F94: 1486 | G94: 1486 | H94: 1486 | I94: 1486 | J94: 1486 | K94: 1486 | L94: 1486 | M94: 1486 | N94: 1486 | O94: 1486 | P94: 1486 | Q94: Doppelzylinder, Grundlänge 30/30, Messing matt vernickelt, beidseitig Notöffnung
A95: 1487 | B95: 1487 | C95: 1487 | D95: 1487 | E95: 1487 | F95: 1487 | G95: 1487 | H95: 1487 | I95: 1487 | J95: 1487 | K95: 1487 | L95: 1487 | M95: 1487 | N95: 1487 | O95: 1487 | P95: 1487 | Q95: Knaufzylinder, Grundlänge 30/30, Messing matt vernickelt, einseitig Notöffnung, andere Seite Knauf
A96: Zylinderfärbungen | Q96: Code (Schließplan Spalte Färbung) | R96: Beschreibung
A97: X | B97: X | C97: X | D97: X | E97: X | F97: X | G97: X | H97: X | I97: X | J97: X | K97: X | L97: X | M97: X | N97: X | O97: X | P97: X | Q97: 1 | R97: Messing matt vernickelt (Standard)
A98: X | B98: X | C98: X | D98: X | E98: X | F98: X | G98: X | H98: X | I98: X | J98: X | K98: X | L98: X | M98: X | N98: X | O98: X | P98: X | Q98: 3 | R98: Messing poliert
A99: X | B99: X | C99: X | D99: X | E99: X | F99: X | G99: X | H99: X | I99: X | J99: X | K99: X | L99: X | M99: X | N99: X | O99: X | P99: X | Q99: 4 | R99: Messing matt gebürstet
A100: X | B100: X | C100: X | D100: X | E100: X | F100: X | G100: X | H100: X | I100: X | J100: X | K100: X | L100: X | M100: X | N100: X | O100: X | P100: X | Q100: 5 | R100: Messing brüniert
A101: X | B101: X | C101: X | D101: X | E101: X | F101: X | G101: X | H101: X | I101: X | J101: X | K101: X | L101: X | M101: X | N101: X | O101: X | P101: X | Q101: 6 | R101: Messing matt verchromt
A102: X | B102: X | C102: X | D102: X | E102: X | F102: X | G102: X | H102: X | I102: X | J102: X | K102: X | L102: X | M102: X | N102: X | O102: X | P102: X | Q102: 7 | R102: Messing poliert verchromt
A103: Zusatzausstattungen für mechanische Schließanlagen (Auszug) | Q103: Code (Schließplan Spalte ZAS) | R103: Beschreibung
A104: X | B104: X | C104: X | D104: X | E104: X | F104: X | G104: X | H104: X | I104: X | J104: X | K104: X | L104: X | M104: X | N104: X | O104: X | P104: X | Q104: 01 | R104: seewasserbeständige Ausführung
A105: X | B105: X | C105: X | D105: X | E105: X | F105: X | G105: X | H105: X | Q105: 03 | R105: verschleissarme Ausführung
A106: X | B106: X | C106: X | D106: X | E106: X | F106: X | G106: X | H106: X | I106: X | J106: X | K106: X | L106: X | M106: X | N106: X | O106: X | P106: X | Q106: 04 | R106: Knauf kurze Seite
A107: X | B107: X | C107: X | D107: X | E107: X | F107: X | G107: X | H107: X | I107: X | J107: X | K107: X | L107: X | M107: X | N107: X | O107: X | P107: X | Q107: 05 | R107: Knauf lange Seite
A108: X | C108: X | D108: X | F108: X | Q108: 08 | R108: Gefahrenschlüssel kurze Seite
A109: X | C109: X | D109: X | F109: X | Q109: 09 | R109: Gefahrenschlüssel lange Seite
A110: X | B110: X | C110: X | D110: X | E110: X | F110: X | G110: X | H110: X | Q110: 3 | R110: ABH I beidseitig
A111: X | B111: X | C111: X | D111: X | E111: X | F111: X | G111: X | H111: X | P111: X | Q111: 4 | R111: ABH III kurze Seite
A112: X | B112: X | C112: X | D112: X | E112: X | F112: X | G112: X | H112: X | P112: X | Q112: 5 | R112: ABH III lange Seite
A113: X | B113: X | C113: X | D113: X | E113: X | F113: X | G113: X | H113: X | P113: X | Q113: 6 | R113: ABH III beidseitig
A114: X | B114: X | C114: X | D114: X | E114: X | F114: X | G114: X | H114: X | Q114: 65 | R114: ABH V beidseitig
A115: X | B115: X | C115: X | D115: X | E115: X | F115: X | G115: X | H115: X | Q115: 45 | R115: ABH V kurze Seite
A116: X | B116: X | C116: X | D116: X | E116: X | F116: X | G116: X | H116: X | Q116: 55 | R116: ABH V lange Seite
I117: X | J117: X | K117: X | L117: X | M117: X | N117: X | O117: X | Q117: 81 | R117: ABH IX kurze Seite
I118: X | J118: X | K118: X | L118: X | M118: X | N118: X | O118: X | Q118: 82 | R118: ABH IX lange Seite
I119: X | J119: X | K119: X | L119: X | M119: X | N119: X | O119: X | Q119: 83 | R119: ABH IX beidseitig
I120: X | J120: X | K120: X | L120: X | M120: X | N120: X | O120: X | Q120: 91 | R120: ABH X kurze Seite
I121: X | J121: X | K121: X | L121: X | M121: X | N121: X | O121: X | Q121: 92 | R121: ABH X lange Seite
I122: X | J122: X | K122: X | L122: X | M122: X | N122: X | O122: X | Q122: 93 | R122: ABH X beidseitig
C123: X | Q123: 7 | R123: PRO für Halbzylinder und Knaufzylinder
C124: X | Q124: 8 | R124: PRO für Doppelzylinder
D125: X | E125: X | F125: X | G125: X | H125: X | I125: X | J125: X | K125: X | L125: X | M125: X | N125: X | O125: X | Q125: A1 | R125: Ziehschutzspange
A126: X | B126: X | C126: X | D126: X | E126: X | F126: X | G126: X | H126: X | I126: X | J126: X | K126: X | L126: X | M126: X | N126: X | O126: X | P126: X | Q126: S2 | R126: Biffar-Schließnase
A127: X | B127: X | C127: X | D127: X | E127: X | F127: X | G127: X | H127: X | I127: X | J127: X | K127: X | L127: X | M127: X | N127: X | O127: X | P127: X | Q127: S3 | R127: Ritzel 10 Zähne (Multilock)
A128: X | B128: X | C128: X | D128: X | E128: X | F128: X | G128: X | H128: X | I128: X | J128: X | K128: X | L128: X | M128: X | N128: X | O128: X | P128: X | Q128: S4 | R128: Ritzel 18 Zähne
A129: elektronische Zylinder, Leser und Beschläge "Serie easy"
A130: E204 | B130: E204 | C130: E204 | D130: E204 | E130: E204 | F130: E204 | G130: E204 | H130: E204 | I130: E204 | J130: E204 | K130: E204 | L130: E204 | M130: E204 | N130: E204 | O130: E204 | P130: E204 | Q130: Elektronischer Doppelknaufzylinder, Serie easy2.0, Grundlänge 30/30, Messing matt vernickelt, aussen Elektronik, innen mechanischer Knauf, IP67
A131: E203 | B131: E203 | C131: E203 | D131: E203 | E131: E203 | F131: E203 | G131: E203 | H131: E203 | I131: E203 | J131: E203 | K131: E203 | L131: E203 | M131: E203 | N131: E203 | O131: E203 | P131: E203 | Q131: Elektronischer Doppelknaufzylinder, Serie easy2.0, Grundlänge 30/30, Messing matt vernickelt, aussen Elektronik, innen Blindkern, IP67
A132: E201 | B132: E201 | C132: E201 | D132: E201 | E132: E201 | F132: E201 | G132: E201 | H132: E201 | I132: E201 | J132: E201 | K132: E201 | L132: E201 | M132: E201 | N132: E201 | O132: E201 | P132: E201 | Q132: Elektronischer Doppelknaufzylinder Classic, Serie easy2.0, Grundlänge 30/30, Messing matt vernickelt, aussen Elektronik, innen mechanischer Knauf, IP44
A133: E206 | B133: E206 | C133: E206 | D133: E206 | E133: E206 | F133: E206 | G133: E206 | H133: E206 | I133: E206 | J133: E206 | K133: E206 | L133: E206 | M133: E206 | N133: E206 | O133: E206 | P133: E206 | Q133: Elektronischer Doppelknaufzylinder, Serie easy2.0, Grundlänge 30/30, Messing matt vernickelt, aussen Elektronik, innen mechanische Schließung, IP67
A134: E207 | B134: E207 | C134: E207 | D134: E207 | E134: E207 | F134: E207 | G134: E207 | H134: E207 | I134: E207 | J134: E207 | K134: E207 | L134: E207 | M134: E207 | N134: E207 | O134: E207 | P134: E207 | Q134: Elektronischer Doppelknaufzylinder, Serie easy2.0, Grundlänge 30/30, Messing matt vernickelt, beidseitig Elektronik, IP67
A135: E213 | B135: E213 | C135: E213 | D135: E213 | E135: E213 | F135: E213 | G135: E213 | H135: E213 | I135: E213 | J135: E213 | K135: E213 | L135: E213 | M135: E213 | N135: E213 | O135: E213 | P135: E213 | Q135: Elektronischer Halbzylinder, Serie easy2.0, Grundlänge 00/30, Messing matt vernickelt, aussen Elektronik, IP67
A136: E214 | B136: E214 | C136: E214 | D136: E214 | E136: E214 | F136: E214 | G136: E214 | H136: E214 | I136: E214 | J136: E214 | K136: E214 | L136: E214 | M136: E214 | N136: E214 | O136: E214 | P136: E214 | Q136: Elektronischer Doppelknaufzylinder, für Anti-Panik-Türen, Serie easy2.0, Grundlänge 30/35, Messing matt vernickelt, aussen Elektronik, innen mechanischer Knauf, IP67
A137: E215 | B137: E215 | C137: E215 | D137: E215 | E137: E215 | F137: E215 | G137: E215 | H137: E215 | I137: E215 | J137: E215 | K137: E215 | L137: E215 | M137: E215 | N137: E215 | O137: E215 | P137: E215 | Q137: Elektronischer Doppelknaufzylinder, für Anti-Panik-Türen, Serie easy2.0, Grundlänge 30/35, Messing matt vernickelt, aussen Elektronik, innen Blindkern, IP67
A138: E219 | B138: E219 | C138: E219 | D138: E219 | E138: E219 | F138: E219 | G138: E219 | H138: E219 | I138: E219 | J138: E219 | K138: E219 | L138: E219 | M138: E219 | N138: E219 | O138: E219 | P138: E219 | Q138: Elektronischer Halbzylinder, Serie easy2.0, Grundlänge 00/30, Messing matt vernickelt, aussen Elektronik, IP67, mit zwei Gewindebohrungen M4 auf der Rückseite
A139: E831 | B139: E831 | C139: E831 | D139: E831 | E139: E831 | F139: E831 | G139: E831 | H139: E831 | I139: E831 | J139: E831 | K139: E831 | L139: E831 | M139: E831 | N139: E831 | O139: E831 | P139: E831 | Q139: Elektronikleser, schmale Abdeckkappe
A140: E832 | B140: E832 | C140: E832 | D140: E832 | E140: E832 | F140: E832 | G140: E832 | H140: E832 | I140: E832 | J140: E832 | K140: E832 | L140: E832 | M140: E832 | N140: E832 | O140: E832 | P140: E832 | Q140: Elektronikleser, breite Abdeckkappe
A141: E820 | B141: E820 | C141: E820 | D141: E820 | E141: E820 | F141: E820 | G141: E820 | H141: E820 | I141: E820 | J141: E820 | K141: E820 | L141: E820 | M141: E820 | N141: E820 | O141: E820 | P141: E820 | Q141: Elektronischer Beschlag
A142: E821 | B142: E821 | C142: E821 | D142: E821 | E142: E821 | F142: E821 | G142: E821 | H142: E821 | I142: E821 | J142: E821 | K142: E821 | L142: E821 | M142: E821 | N142: E821 | O142: E821 | P142: E821 | Q142: Elektronischer Beschlag, für den Einsatz in Brand- und Rauchschutztüren.
A143: E826 | B143: E826 | C143: E826 | D143: E826 | E143: E826 | F143: E826 | G143: E826 | H143: E826 | I143: E826 | J143: E826 | K143: E826 | L143: E826 | M143: E826 | N143: E826 | O143: E826 | P143: E826 | Q143: Elektronischer Beschlag, mit beidseitiger elektronischer Abfrage
A144: E931 | B144: E931 | C144: E931 | D144: E931 | E144: E931 | F144: E931 | G144: E931 | H144: E931 | I144: E931 | J144: E931 | K144: E931 | L144: E931 | M144: E931 | N144: E931 | O144: E931 | P144: E931 | Q144: Elektronikleser, schmale Abdeckkappe System "elink"
A145: E932 | B145: E932 | C145: E932 | D145: E932 | E145: E932 | F145: E932 | G145: E932 | H145: E932 | I145: E932 | J145: E932 | K145: E932 | L145: E932 | M145: E932 | N145: E932 | O145: E932 | P145: E932 | Q145: Elektronikleser, breite Abdeckkappe System "elink"
A146: E935 | B146: E935 | C146: E935 | D146: E935 | E146: E935 | F146: E935 | G146: E935 | H146: E935 | I146: E935 | J146: E935 | K146: E935 | L146: E935 | M146: E935 | N146: E935 | O146: E935 | P146: E935 | Q146: Zusatzleser, schmale Abdeckkappe System "elink"
A147: E936 | B147: E936 | C147: E936 | D147: E936 | E147: E936 | F147: E936 | G147: E936 | H147: E936 | I147: E936 | J147: E936 | K147: E936 | L147: E936 | M147: E936 | N147: E936 | O147: E936 | P147: E936 | Q147: Zusatzleser, breite Abdeckkappe System "elink"
A148: E920 | B148: E920 | C148: E920 | D148: E920 | E148: E920 | F148: E920 | G148: E920 | H148: E920 | I148: E920 | J148: E920 | K148: E920 | L148: E920 | M148: E920 | N148: E920 | O148: E920 | P148: E920 | Q148: Elektronischer Beschlag
A149: E921 | B149: E921 | C149: E921 | D149: E921 | E149: E921 | F149: E921 | G149: E921 | H149: E921 | I149: E921 | J149: E921 | K149: E921 | L149: E921 | M149: E921 | N149: E921 | O149: E921 | P149: E921 | Q149: Elektronischer Beschlag, für den Einsatz in Brand- und Rauchschutztüren.
A150: E926 | B150: E926 | C150: E926 | D150: E926 | E150: E926 | F150: E926 | G150: E926 | H150: E926 | I150: E926 | J150: E926 | K150: E926 | L150: E926 | M150: E926 | N150: E926 | O150: E926 | P150: E926 | Q150: Elektronischer Beschlag, mit beidseitiger elektronischer Abfrage
A151: E822 | B151: E822 | C151: E822 | D151: E822 | E151: E822 | F151: E822 | G151: E822 | H151: E822 | I151: E822 | J151: E822 | K151: E822 | L151: E822 | M151: E822 | N151: E822 | O151: E822 | P151: E822 | Q151: Mechanische Innen-Rosettengarnitur für E821/E921
A152: Zubehör elektronische Zylinder, Leser und Beschläge "Serie easy"
A153: E837 | B153: E837 | C153: E837 | D153: E837 | E153: E837 | F153: E837 | G153: E837 | H153: E837 | I153: E837 | J153: E837 | K153: E837 | L153: E837 | M153: E837 | N153: E837 | O153: E837 | P153: E837 | Q153: Aufputzgehäuse für Lesersteuerung weiß
A154: E234 | B154: E234 | C154: E234 | D154: E234 | E154: E234 | F154: E234 | G154: E234 | H154: E234 | I154: E234 | J154: E234 | K154: E234 | L154: E234 | M154: E234 | N154: E234 | O154: E234 | P154: E234 | Q154: Montagewerkzeug für easy2.0
A155: E850 | B155: E850 | C155: E850 | D155: E850 | E155: E850 | F155: E850 | G155: E850 | H155: E850 | I155: E850 | J155: E850 | K155: E850 | L155: E850 | M155: E850 | N155: E850 | O155: E850 | P155: E850 | Q155: Basic-Software mit tragbarem Programmiergerät, inkl. USB-Anschlusskabel
A156: E852 | B156: E852 | C156: E852 | D156: E852 | E156: E852 | F156: E852 | G156: E852 | H156: E852 | I156: E852 | J156: E852 | K156: E852 | L156: E852 | M156: E852 | N156: E852 | O156: E852 | P156: E852 | Q156: Basic lite-Software mit tragbarem Programmiergerät, inkl. USB-Anschlusskabel
A157: E855 | B157: E855 | C157: E855 | D157: E855 | E157: E855 | F157: E855 | G157: E855 | H157: E855 | I157: E855 | J157: E855 | K157: E855 | L157: E855 | M157: E855 | N157: E855 | O157: E855 | P157: E855 | Q157: Hotel-Software, inkl. Kodierstation
A158: E950 | B158: E950 | C158: E950 | D158: E950 | E158: E950 | F158: E950 | G158: E950 | H158: E950 | I158: E950 | J158: E950 | K158: E950 | L158: E950 | M158: E950 | N158: E950 | O158: E950 | P158: E950 | Q158: elink-Software, inkl. Programmiergerät
A159: E295 | B159: E295 | C159: E295 | D159: E295 | E159: E295 | F159: E295 | G159: E295 | H159: E295 | I159: E295 | J159: E295 | K159: E295 | L159: E295 | M159: E295 | N159: E295 | O159: E295 | P159: E295 | Q159: Programmierkarte
A160: E296 | B160: E296 | C160: E296 | D160: E296 | E160: E296 | F160: E296 | G160: E296 | H160: E296 | I160: E296 | J160: E296 | K160: E296 | L160: E296 | M160: E296 | N160: E296 | O160: E296 | P160: E296 | Q160: Löschkarte für Transpondermedium
A161: E297 | B161: E297 | C161: E297 | D161: E297 | E161: E297 | F161: E297 | G161: E297 | H161: E297 | I161: E297 | J161: E297 | K161: E297 | L161: E297 | M161: E297 | N161: E297 | O161: E297 | P161: E297 | Q161: Daueraufkarte
A162: SE24 | B162: SE24 | C162: SE24 | D162: SE60 | E162: SE65 | F162: SE66 | G162: SE66 | H162: SE66 | I162: SE66 | J162: SE66 | K162: SE66 | L162: SE66 | M162: SE66 | N162: SE66 | O162: SE35 | P162: E241 | Q162: Elektronikschlüssel
A163: E891 | B163: E891 | C163: E891 | D163: E891 | E163: E891 | F163: E891 | G163: E891 | H163: E891 | I163: E891 | J163: E891 | K163: E891 | L163: E891 | M163: E891 | N163: E891 | O163: E891 | P163: E891 | Q163: Schlüsselanhänger-Transponder
A164: E892 | B164: E892 | C164: E892 | D164: E892 | E164: E892 | F164: E892 | G164: E892 | H164: E892 | I164: E892 | J164: E892 | K164: E892 | L164: E892 | M164: E892 | N164: E892 | O164: E892 | P164: E892 | Q164: Schlüsselanhänger-Transponder Komfort-Ausführung
A165: E894 | B165: E894 | C165: E894 | D165: E894 | E165: E894 | F165: E894 | G165: E894 | H165: E894 | I165: E894 | J165: E894 | K165: E894 | L165: E894 | M165: E894 | N165: E894 | O165: E894 | P165: E894 | Q165: Transponderkarte
A166: E896 | B166: E896 | C166: E896 | D166: E896 | E166: E896 | F166: E896 | G166: E896 | H166: E896 | I166: E896 | J166: E896 | K166: E896 | L166: E896 | M166: E896 | N166: E896 | O166: E896 | P166: E896 | Q166: Transponderscheibe transparent oder selbstklebend weiß
A167: E898 | B167: E898 | C167: E898 | D167: E898 | E167: E898 | F167: E898 | G167: E898 | H167: E898 | I167: E898 | J167: E898 | K167: E898 | L167: E898 | M167: E898 | N167: E898 | O167: E898 | P167: E898 | Q167: Schlüsselanhänger in verschiedenen Ausführungen, Standard+, Premium (mind. Bestellmenge 5 Stück)
A168: E624ST | B168: E624ST | C168: E624ST | D168: E624ST | E168: E624ST | F168: E624ST | G168: E624ST | H168: E624ST | I168: E624ST | J168: E624ST | K168: E624ST | L168: E624ST | M168: E624ST | N168: E624ST | O168: E624ST | P168: E624ST | Q168: Steckernetzteil für externe Versorgung von Leser und Zylinder
A169: E624UP | B169: E624UP | C169: E624UP | D169: E624UP | E169: E624UP | F169: E624UP | G169: E624UP | H169: E624UP | I169: E624UP | J169: E624UP | K169: E624UP | L169: E624UP | M169: E624UP | N169: E624UP | O169: E624UP | P169: E624UP | Q169: Netzteil für Einbau in UP-Dose für externe Versorgung von Leser und Zylinder
A170: E823 | B170: E823 | C170: E823 | D170: E823 | E170: E823 | F170: E823 | G170: E823 | H170: E823 | I170: E823 | J170: E823 | K170: E823 | L170: E823 | M170: E823 | N170: E823 | O170: E823 | P170: E823 | Q170: Notstrombox für Beschlag
A171: E825 | B171: E825 | C171: E825 | D171: E825 | E171: E825 | F171: E825 | G171: E825 | H171: E825 | I171: E825 | J171: E825 | K171: E825 | L171: E825 | M171: E825 | N171: E825 | O171: E825 | P171: E825 | Q171: Unterlegblech Edelstahl gebürstet für Beschlag
A172: E680 | B172: E680 | C172: E680 | D172: E680 | E172: E680 | F172: E680 | G172: E680 | H172: E680 | I172: E680 | J172: E680 | K172: E680 | L172: E680 | M172: E680 | N172: E680 | O172: E680 | P172: E680 | Q172: Kabelübergang, galvanisch verchromt
A173: Zusatzausstattungen für elektronische Schließanlagen (Auszug) | Q173: Code (Schließplan Spalte ZAS) | R173: Beschreibung
A174: X | B174: X | C174: X | D174: X | E174: X | F174: X | G174: X | H174: X | I174: X | J174: X | K174: X | L174: X | M174: X | N174: X | O174: X | P174: X | Q174: V | R174: verlängerte Achse
A175: Motorzylinder MZ02
B176: M550 | C176: M550 | D176: M550 | E176: M550 | F176: M550 | G176: M550 | H176: M550 | I176: M550 | J176: M550 | K176: M550* | L176: M550* | M176: M550* | N176: M550* | O176: M550 | Q176: Motorzylinder MZ02, Grundlänge 30/30, inkl. Steuerung, Netzteil, Kabel und Türkontakt, matt vernickelt | T176: *
B177: M551 | C177: M551 | D177: M551 | E177: M551 | F177: M551 | G177: M551 | H177: M551 | I177: M551 | J177: M551 | K177: M551* | L177: M551* | M177: M551* | N177: M551* | O177: M551 | Q177: Motorzylinder MZ02, Grundlänge 30/30, inkl. Steuerung, Netzteil, Kabel und Türkontakt, F1 ähnlich | T177: *
B178: M552 | C178: M552 | D178: M552 | E178: M552 | F178: M552 | G178: M552 | H178: M552 | I178: M552 | J178: M552 | K178: M552* | L178: M552* | M178: M552* | N178: M552* | O178: M552 | Q178: Motorzylinder MZ02, Grundlänge 30/30, inkl. Steuerung, Netzteil, Kabel und Türkontakt, Edelstahl ähnlich | T178: *
B179: M553 | C179: M553 | D179: M553 | E179: M553 | F179: M553 | G179: M553 | H179: M553 | I179: M553 | J179: M553 | K179: M553* | L179: M553* | M179: M553* | N179: M553* | O179: M553 | Q179: Motorzylinder MZ02, Grundlänge 30/30, inkl. Steuerung, Netzteil, Kabel und Türkontakt, Messing poliert | T179: *
A180: M554 | B180: M554 | C180: M554 | D180: M554 | E180: M554 | F180: M554 | G180: M554 | H180: M554 | I180: M554 | J180: M554 | K180: M554* | L180: M554* | M180: M554* | N180: M554* | O180: M554 | P180: M554 | Q180: Motorzylinder MZ02, Grundlänge 30/30, inkl. Steuerung, Netzteil, Kabel und Türkontakt, matt vernickelt, mit Blindzylinder | T180: *
A181: M555 | B181: M555 | C181: M555 | D181: M555 | E181: M555 | F181: M555 | G181: M555 | H181: M555 | I181: M555 | J181: M555 | K181: M555* | L181: M555* | M181: M555* | N181: M555* | O181: M555 | P181: M555 | Q181: Motorzylinder MZ02, Grundlänge 30/30, inkl. Steuerung, Netzteil, Kabel und Türkontakt, F1 ähnlich, mit Blindzylinder | T181: *
A182: M556 | B182: M556 | C182: M556 | D182: M556 | E182: M556 | F182: M556 | G182: M556 | H182: M556 | I182: M556 | J182: M556 | K182: M556* | L182: M556* | M182: M556* | N182: M556* | O182: M556 | P182: M556 | Q182: Motorzylinder MZ02, Grundlänge 30/30, inkl. Steuerung, Netzteil, Kabel und Türkontakt, Edelstahl ähnlich, mit Blindzylinder | T182: *
A183: M557 | B183: M557 | C183: M557 | D183: M557 | E183: M557 | F183: M557 | G183: M557 | H183: M557 | I183: M557 | J183: M557 | K183: M557* | L183: M557* | M183: M557* | N183: M557* | O183: M557 | P183: M557 | Q183: Motorzylinder MZ02, Grundlänge 30/30, inkl. Steuerung, Netzteil, Kabel und Türkontakt, Messing poliert, mit Blindzylinder | T183: *
B184: M558 | C184: M558 | D184: M558 | E184: M558 | F184: M558 | G184: M558 | H184: M558 | I184: M558 | J184: M558 | K184: M558* | L184: M558* | M184: M558* | N184: M558* | O184: M558 | Q184: Motorzylinder MZ02, Grundlänge 30/30, inkl. Steuerung, Netzteil, Kabel und Türkontakt, matt vernickelt, ohne Innenknauf | T184: *
A185: Zubehör Motorzylinder MZ02
A186: M540 | B186: M540 | C186: M540 | D186: M540 | E186: M540 | F186: M540 | G186: M540 | H186: M540 | I186: M540 | J186: M540 | K186: M540 | L186: M540 | M186: M540 | N186: M540 | O186: M540 | P186: M540 | Q186: Wochenzeitschaltuhr für MZ02
A187: M541 | B187: M541 | C187: M541 | D187: M541 | E187: M541 | F187: M541 | G187: M541 | H187: M541 | I187: M541 | J187: M541 | K187: M541 | L187: M541 | M187: M541 | N187: M541 | O187: M541 | P187: M541 | Q187: Warntonsirene

Sheet Systemaufstellung (hidden)
A4: Standard | B4: 1400 | C4: 1463 | D4: 1408 | E4: 1478 | F4: 1479 | G4: 1480 | H4: 1481 | I4: 1483 | J4: 1488 | K4: 1489 | L4: 1405 | M4: 1406 | N4: 1407 | O4: 1484 | P4: 1473 | Q4: 1312 | R4: 1319 | S4: 1410 | T4: 1415 | U4: 2201 | V4: 1250 | W4: 1251 | X4: 1253 | Y4: 500 | Z4: 500F | AA4: 501 | AB4: 503 | AC4: 515 | AD4: 560 | AE4: 580 | AF4: 586 | AG4: 587 | AH4: 2530 | AI4: 2532 | AJ4: 2534 | AK4: 2613 | AL4: 516 | AM4: 519 | AN4: 520 | AO4: 529 | AP4: 530 | AQ4: 541 | AR4: 542 | AS4: 543 | AT4: 544 | AU4: 1304 | AV4: 1307 | AW4: 1380 | AX4: 1401 | AY4: 1413 | AZ4: 1477 | BA4: 1482 | BB4: E204 | BC4: E201 | BD4: E203 | BE4: E207 | BF4: E213 | BG4: E214 | BH4: E215 | BI4: E219 | BJ4: E831 | BK4: E832 | BL4: E820 | BM4: E821 | BN4: E826 | BO4: E931 | BP4: E932 | BQ4: E935 | BR4: E936 | BS4: E920 | BT4: E921 | BU4: E926 | BV4: E822 | BW4: E837 | BX4: E234 | BY4: E850 | BZ4: E852 | CA4: E855 | CB4: E950 | CC4: E295 | CD4: E296 | CE4: E297 | CF4: SE24 | CG4: E891 | CH4: E892 | CI4: E894 | CJ4: E896 | CK4: E898 | CL4: E624ST | CM4: E624UP | CN4: E823 | CO4: E825 | CP4: E680
A5: CARAT | B5: 1400 | C5: 1463 | D5: 1408 | E5: 1480 | F5: 1481 | G5: 1483 | H5: 1488 | I5: 1489 | J5: 1405 | K5: 1406 | L5: 1407 | M5: 1484 | N5: 1312 | O5: 1319 | P5: 1410 | Q5: 1415 | R5: 2201 | S5: 1250 | T5: 1251 | U5: 1253 | V5: 500 | W5: 500F | X5: 501 | Y5: 503 | Z5: 515 | AA5: 560 | AB5: 580 | AC5: 586 | AD5: 587 | AE5: 2530 | AF5: 2532 | AG5: 2534 | AH5: 2613 | AI5: 516 | AJ5: 519 | AK5: 520 | AL5: 529 | AM5: 530 | AN5: 541 | AO5: 542 | AP5: 543 | AQ5: 544 | AR5: 1304 | AS5: 1307 | AT5: 1380 | AU5: 1401 | AV5: 1413 | AW5: 1477 | AX5: 1482 | AY5: E204 | AZ5: E201 | BA5: E203 | BB5: E206 | BC5: E207 | BD5: E213 | BE5: E214 | BF5: E215 | BG5: E219 | BH5: E831 | BI5: E832 | BJ5: E820 | BK5: E821 | BL5: E826 | BM5: E931 | BN5: E932 | BO5: E935 | BP5: E936 | BQ5: E920 | BR5: E921 | BS5: E926 | BT5: E822 | BU5: E837 | BV5: E234 | BW5: E850 | BX5: E852 | BY5: E855 | BZ5: E950 | CA5: E295 | CB5: E296 | CC5: E297 | CD5: SE24 | CE5: E891 | CF5: E892 | CG5: E894 | CH5: E896 | CI5: E898 | CJ5: E624ST | CK5: E624UP | CL5: E823 | CM5: E825 | CN5: E680
A6: HSR | B6: 1399 | C6: 1400 | D6: 1463 | E6: 1408 | F6: 1478 | G6: 1479 | H6: 1480 | I6: 1481 | J6: 1483 | K6: 1488 | L6: 1489 | M6: 1405 | N6: 1406 | O6: 1407 | P6: 1484 | Q6: 1473 | R6: 1312 | S6: 1319 | T6: 1398 | U6: 1410 | V6: 1415 | W6: 2201 | X6: 1250 | Y6: 1251 | Z6: 1253 | AA6: 500 | AB6: 500F | AC6: 501 | AD6: 503 | AE6: 515 | AF6: 560 | AG6: 580 | AH6: 586 | AI6: 587 | AJ6: 2530 | AK6: 2532 | AL6: 2534 | AM6: 2613 | AN6: 516 | AO6: 519 | AP6: 520 | AQ6: 529 | AR6: 530 | AS6: 541 | AT6: 542 | AU6: 543 | AV6: 544 | AW6: 1304 | AX6: 1307 | AY6: 1380 | AZ6: 1401 | BA6: 1413 | BB6: 1477 | BC6: 1482 | BD6: E204 | BE6: E201 | BF6: E203 | BG6: E206 | BH6: E207 | BI6: E213 | BJ6: E214 | BK6: E215 | BL6: E219 | BM6: E831 | BN6: E832 | BO6: E820 | BP6: E821 | BQ6: E826 | BR6: E931 | BS6: E932 | BT6: E935 | BU6: E936 | BV6: E920 | BW6: E921 | BX6: E926 | BY6: E822 | BZ6: E837 | CA6: E234 | CB6: E850 | CC6: E852 | CD6: E855 | CE6: E950 | CF6: E295 | CG6: E296 | CH6: E297 | CI6: SE24 | CJ6: E891 | CK6: E892 | CL6: E894 | CM6: E896 | CN6: E898 | CO6: E624ST | CP6: E624UP | CQ6: E823 | CR6: E825 | CS6: E680
A7: STR | B7: 1399 | C7: 1400 | D7: 1463 | E7: 1408 | F7: 1478 | G7: 1479 | H7: 1480 | I7: 1481 | J7: 1483 | K7: 1488 | L7: 1489 | M7: 1405 | N7: 1406 | O7: 1407 | P7: 1484 | Q7: 1473 | R7: 1312 | S7: 1319 | T7: 1398 | U7: 1410 | V7: 1415 | W7: K400 | X7: K405 | Y7: K406 | Z7: K408 | AA7: K410 | AB7: K463 | AC7: 2201 | AD7: 1250 | AE7: 1251 | AF7: 1253 | AG7: 500 | AH7: 500F | AI7: 501 | AJ7: 503 | AK7: 515 | AL7: 560 | AM7: 580 | AN7: 586 | AO7: 587 | AP7: 2530 | AQ7: 2532 | AR7: 2534 | AS7: 2613 | AT7: 516 | AU7: 519 | AV7: 520 | AW7: 529 | AX7: 530 | AY7: 541 | AZ7: 542 | BA7: 543 | BB7: 544 | BC7: 1304 | BD7: 1307 | BE7: 1380 | BF7: 1401 | BG7: 1413 | BH7: 1477 | BI7: 1482 | BJ7: E204 | BK7: E201 | BL7: E203 | BM7: E206 | BN7: E207 | BO7: E213 | BP7: E214 | BQ7: E215 | BR7: E219 | BS7: E831 | BT7: E832 | BU7: E820 | BV7: E821 | BW7: E826 | BX7: E931 | BY7: E932 | BZ7: E935 | CA7: E936 | CB7: E920 | CC7: E921 | CD7: E926 | CE7: E822 | CF7: E837 | CG7: E234 | CH7: E850 | CI7: E852 | CJ7: E855 | CK7: E950 | CL7: E295 | CM7: E296 | CN7: E297 | CO7: SE60 | CP7: E891 | CQ7: E892 | CR7: E894 | CS7: E896 | CT7: E898 | CU7: E624ST | CV7: E624UP | CW7: E823 | CX7: E825 | CY7: E680
A8: TH6 | B8: 1399 | C8: 1400 | D8: 1463 | E8: 1408 | F8: 1478 | G8: 1479 | H8: 1480 | I8: 1481 | J8: 1483 | K8: 1488 | L8: 1489 | M8: 1405 | N8: 1406 | O8: 1407 | P8: 1484 | Q8: 1473 | R8: 1312 | S8: 1319 | T8: 1398 | U8: 1410 | V8: 1415 | W8: B400 | X8: B405 | Y8: B406 | Z8: B408 | AA8: B410 | AB8: B463 | AC8: D400 | AD8: D405 | AE8: D406 | AF8: D408 | AG8: D410 | AH8: D463 | AI8: K400 | AJ8: K405 | AK8: K406 | AL8: K408 | AM8: K410 | AN8: K463 | AO8: G400 | AP8: G405 | AQ8: G406 | AR8: G408 | AS8: G410 | AT8: G463 | AU8: 2201 | AV8: 1250 | AW8: 1251 | AX8: 1253 | AY8: 500 | AZ8: 500F | BA8: 501 | BB8: 503 | BC8: 515 | BD8: 560 | BE8: 580 | BF8: 586 | BG8: 587 | BH8: 2530 | BI8: 2532 | BJ8: 2534 | BK8: 2613 | BL8: 516 | BM8: 519 | BN8: 520 | BO8: 529 | BP8: 530 | BQ8: 541 | BR8: 542 | BS8: 543 | BT8: 544 | BU8: 1304 | BV8: 1307 | BW8: 1380 | BX8: 1401 | BY8: 1413 | BZ8: 1477 | CA8: 1482 | CB8: E204 | CC8: E201 | CD8: E203 | CE8: E206 | CF8: E207 | CG8: E213 | CH8: E214 | CI8: E215 | CJ8: E219 | CK8: E831 | CL8: E832 | CM8: E820 | CN8: E821 | CO8: E826 | CP8: E931 | CQ8: E932 | CR8: E935 | CS8: E936 | CT8: E920 | CU8: E921 | CV8: E926 | CW8: E822 | CX8: E837 | CY8: E234 | CZ8: E850 | DA8: E852 | DB8: E855 | DC8: E950 | DD8: E295 | DE8: E296 | DF8: E297 | DG8: SE65 | DH8: E891 | DI8: E892 | DJ8: E894 | DK8: E896 | DL8: E898 | DM8: E624ST | DN8: E624UP | DO8: E823 | DP8: E825 | DQ8: E680
A9: CARAT P1 | B9: 1400 | C9: 1463 | D9: 1408 | E9: 1480 | F9: 1481 | G9: 1483 | H9: 1488 | I9: 1405 | J9: 1406 | K9: 1407 | L9: 1484 | M9: 1312 | N9: 1319 | O9: 1410 | P9: 1415 | Q9: K400 | R9: K405 | S9: K406 | T9: K408 | U9: K410 | V9: K463 | W9: G400 | X9: G405 | Y9: G406 | Z9: G408 | AA9: G410 | AB9: G463 | AC9: 2201 | AD9: 1250 | AE9: 1251 | AF9: 1253 | AG9: 500 | AH9: 500F | AI9: 515 | AJ9: 580 | AK9: 516 | AL9: 519 | AM9: 520 | AN9: 529 | AO9: 530 | AP9: 541 | AQ9: 542 | AR9: 543 | AS9: 544 | AT9: 1304 | AU9: 1307 | AV9: 1380 | AW9: 1401 | AX9: 1413 | AY9: 1477 | AZ9: 1482 | BA9: E204 | BB9: E201 | BC9: E203 | BD9: E206 | BE9: E207 | BF9: E213 | BG9: E214 | BH9: E215 | BI9: E219 | BJ9: E831 | BK9: E832 | BL9: E820 | BM9: E821 | BN9: E826 | BO9: E931 | BP9: E932 | BQ9: E935 | BR9: E936 | BS9: E920 | BT9: E921 | BU9: E926 | BV9: E822 | BW9: E837 | BX9: E234 | BY9: E850 | BZ9: E852 | CA9: E855 | CB9: E950 | CC9: E295 | CD9: E296 | CE9: E297 | CF9: SE66 | CG9: E891 | CH9: E892 | CI9: E894 | CJ9: E896 | CK9: E898 | CL9: E624ST | CM9: E624UP | CN9: E823 | CO9: E825 | CP9: E681
A10: 2VE | B10: 3600 | C10: 3663 | D10: 3608 | E10: 3680 | F10: 3681 | G10: 3683 | H10: 3688 | I10: 3689 | J10: 3605 | K10: 3606 | L10: 3607 | M10: 3684 | N10: 3673 | O10: 3612 | P10: 3619 | Q10: 3610 | R10: 3615 | S10: 3601 | T10: 3650 | U10: 3651 | V10: 3657 | W10: 3652 | X10: 3632 | Y10: 3603 | Z10: 3685 | AA10: 3660 | AB10: 3690 | AC10: 3616 | AD10: 3624 | AE10: 3656 | AF10: 3613 | AG10: 516 | AH10: 519 | AI10: 520 | AJ10: 529 | AK10: 530 | AL10: 541 | AM10: 542 | AN10: 543 | AO10: 544 | AP10: 1304 | AQ10: 1307 | AR10: 1380 | AS10: 1401 | AT10: 1413 | AU10: 1477 | AV10: 1482 | AW10: E204 | AX10: E201 | AY10: E203 | AZ10: E206 | BA10: E207 | BB10: E213 | BC10: E214 | BD10: E215 | BE10: E219 | BF10: E831 | BG10: E832 | BH10: E820 | BI10: E821 | BJ10: E826 | BK10: E931 | BL10: E932 | BM10: E935 | BN10: E936 | BO10: E920 | BP10: E921 | BQ10: E926 | BR10: E822 | BS10: E837 | BT10: E234 | BU10: E850 | BV10: E852 | BW10: E855 | BX10: E950 | BY10: E295 | BZ10: E296 | CA10: E297 | CB10: SE37 | CC10: E891 | CD10: E892 | CE10: E894 | CF10: E896 | CG10: E898 | CH10: E624ST | CI10: E624UP | CJ10: E823 | CK10: E825 | CL10: E682
A11: 3VE | B11: 3600 | C11: 3663 | D11: 3608 | E11: 3680 | F11: 3681 | G11: 3683 | H11: 3688 | I11: 3689 | J11: 3605 | K11: 3606 | L11: 3607 | M11: 3684 | N11: 3673 | O11: 3612 | P11: 3619 | Q11: 3610 | R11: 3615 | S11: B300 | T11: B305 | U11: B306 | V11: B308 | W11: B310 | X11: B363 | Y11: K360 | Z11: K365 | AA11: K366 | AB11: K368 | AC11: K361 | AD11: K363 | AE11: G360 | AF11: G365 | AG11: G366 | AH11: G368 | AI11: G361 | AJ11: G363 | AK11: 3601 | AL11: 3650 | AM11: 3651 | AN11: 3657 | AO11: 3652 | AP11: 3632 | AQ11: 3603 | AR11: 3685 | AS11: 3660 | AT11: 3690 | AU11: 3616 | AV11: 3624 | AW11: 3656 | AX11: 3613 | AY11: 516 | AZ11: 519 | BA11: 520 | BB11: 529 | BC11: 530 | BD11: 541 | BE11: 542 | BF11: 543 | BG11: 544 | BH11: 1304 | BI11: 1307 | BJ11: 1380 | BK11: 1401 | BL11: 1413 | BM11: 1477 | BN11: 1482 | BO11: E204 | BP11: E201 | BQ11: E203 | BR11: E206 | BS11: E207 | BT11: E213 | BU11: E214 | BV11: E215 | BW11: E219 | BX11: E831 | BY11: E832 | BZ11: E820 | CA11: E821 | CB11: E826 | CC11: E931 | CD11: E932 | CE11: E935 | CF11: E936 | CG11: E920 | CH11: E921 | CI11: E926 | CJ11: E822 | CK11: E837 | CL11: E234 | CM11: E850 | CN11: E852 | CO11: E855 | CP11: E950 | CQ11: E295 | CR11: E296 | CS11: E297 | CT11: SE36 | CU11: E891 | CV11: E892 | CW11: E894 | CX11: E896 | CY11: E898 | CZ11: E624ST | DA11: E624UP | DB11: E823 | DC11: E825 | DD11: E680
A12: CARAT P3 | B12: 3600 | C12: 3663 | D12: 3608 | E12: 3680 | F12: 3681 | G12: 3683 | H12: 3688 | I12: 3605 | J12: 3606 | K12: 3607 | L12: 3684 | M12: 3612 | N12: 3619 | O12: 3610 | P12: 3615 | Q12: K360 | R12: K365 | S12: K366 | T12: K368 | U12: K361 | V12: K363 | W12: G360 | X12: G365 | Y12: G366 | Z12: G368 | AA12: G361 | AB12: G363 | AC12: 3601 | AD12: 3650 | AE12: 3651 | AF12: 3657 | AG12: 3652 | AH12: 3632 | AI12: 3685 | AJ12: 3690 | AK12: 516 | AL12: 519 | AM12: 520 | AN12: 529 | AO12: 530 | AP12: 541 | AQ12: 542 | AR12: 543 | AS12: 544 | AT12: 1304 | AU12: 1307 | AV12: 1380 | AW12: 1401 | AX12: 1413 | AY12: 1477 | AZ12: 1482 | BA12: E204 | BB12: E201 | BC12: E203 | BD12: E206 | BE12: E207 | BF12: E213 | BG12: E214 | BH12: E215 | BI12: E219 | BJ12: E831 | BK12: E832 | BL12: E820 | BM12: E821 | BN12: E826 | BO12: E931 | BP12: E932 | BQ12: E935 | BR12: E936 | BS12: E920 | BT12: E921 | BU12: E926 | BV12: E822 | BW12: E837 | BX12: E234 | BY12: E850 | BZ12: E852 | CA12: E855 | CB12: E950 | CC12: E295 | CD12: E296 | CE12: E297 | CF12: SE35 | CG12: E891 | CH12: E892 | CI12: E894 | CJ12: E896 | CK12: E898 | CL12: E624ST | CM12: E624UP | CN12: E823 | CO12: E825 | CP12: E680
A13: WZ | B13: 2122 | C13: 2163 | D13: 2108 | E13: 2178 | F13: 2179 | G13: 2180 | H13: 2181 | I13: 2183 | J13: 2188 | K13: 2189 | L13: 2105 | M13: 3606 | N13: 2107 | O13: 2184 | P13: 2112 | Q13: 2119 | R13: 2110 | S13: 2115 | T13: 2101 | U13: 2150 | V13: 2151 | W13: 2157 | X13: 2152 | Y13: 2132 | Z13: 2155 | AA13: 2103 | AB13: 2185 | AC13: 2160 | AD13: 2190 | AE13: 2154 | AF13: 2153 | AG13: 2116 | AH13: 2124 | AI13: 2156 | AJ13: 2113 | AK13: 516 | AL13: 519 | AM13: 520 | AN13: 529 | AO13: 530 | AP13: 541 | AQ13: 542 | AR13: 543 | AS13: 544 | AT13: 1304 | AU13: 1307 | AV13: 1380 | AW13: 1401 | AX13: 1413 | AY13: 1477 | AZ13: 1482 | BA13: E204 | BB13: E201 | BC13: E203 | BD13: E207 | BE13: E213 | BF13: E214 | BG13: E215 | BH13: E219 | BI13: E831 | BJ13: E832 | BK13: E820 | BL13: E821 | BM13: E826 | BN13: E931 | BO13: E932 | BP13: E935 | BQ13: E936 | BR13: E920 | BS13: E921 | BT13: E926 | BU13: E822 | BV13: E837 | BW13: E234 | BX13: E850 | BY13: E852 | BZ13: E855 | CA13: E950 | CB13: E295 | CC13: E296 | CD13: E297 | CE13: E241 | CF13: E891 | CG13: E892 | CH13: E894 | CI13: E896 | CJ13: E898 | CK13: E624ST | CL13: E624UP | CM13: E823 | CN13: E825 | CO13: E680
A14: SI6 | B14: 1399 | C14: 1400 | D14: 1463 | E14: 1408 | F14: 1478 | G14: 1479 | H14: 1480 | I14: 1481 | J14: 1483 | K14: 1488 | L14: 1489 | M14: 1405 | N14: 1406 | O14: 1407 | P14: 1484 | Q14: 1473 | R14: 1312 | S14: 1319 | T14: 1398 | U14: 1410 | V14: 1415 | W14: B400* | X14: B405* | Y14: B406* | Z14: B408* | AA14: B410* | AB14: B463* | AC14: D400 | AD14: D405 | AE14: D406 | AF14: D408 | AG14: D410 | AH14: D463 | AI14: K400 | AJ14: K405 | AK14: K406 | AL14: K408 | AM14: K410 | AN14: K463 | AO14: G400 | AP14: G405 | AQ14: G406 | AR14: G408 | AS14: G410 | AT14: G463 | AU14: 2201 | AV14: 1250 | AW14: 1251 | AX14: 1253 | AY14: 500 | AZ14: 500F | BA14: 501 | BB14: 503 | BC14: 515 | BD14: 560 | BE14: 580 | BF14: 586 | BG14: 587 | BH14: 2530 | BI14: 2532 | BJ14: 2534 | BK14: 2613 | BL14: 516 | BM14: 519 | BN14: 520 | BO14: 529 | BP14: 530 | BQ14: 541 | BR14: 542 | BS14: 543 | BT14: 544 | BU14: 1304 | BV14: 1307 | BW14: 1380 | BX14: 1401 | BY14: 1413 | BZ14: 1477 | CA14: 1482 | CB14: 1486 | CC14: 1487 | CD14: E204 | CE14: E201 | CF14: E203 | CG14: E206 | CH14: E207 | CI14: E213 | CJ14: E214 | CK14: E215 | CL14: E219 | CM14: E831 | CN14: E832 | CO14: E820 | CP14: E821 | CQ14: E826 | CR14: E931 | CS14: E932 | CT14: E935 | CU14: E936 | CV14: E920 | CW14: E921 | CX14: E926 | CY14: E822 | CZ14: E837 | DA14: E234 | DB14: E850 | DC14: E852 | DD14: E855 | DE14: E950 | DF14: E295 | DG14: E296 | DH14: E297 | DI14: SE66 | DJ14: E891 | DK14: E892 | DL14: E894 | DM14: E896 | DN14: E898 | DO14: E624ST | DP14: E624UP | DQ14: E823 | DR14: E825 | DS14: E681 | DT14: M550* | DU14: M551* | DV14: M552* | DW14: M553* | DX14: M554* | DY14: M555* | DZ14: M556* | EA14: M557* | EB14: M558* | EC14: M540 | ED14: M541 | EI14: M550 | EJ14: M551* | EK14: M552* | EL14: M553* | EM14: M554* | EN14: M555* | EO14: M556* | EP14: M557* | EQ14: M558* | ER14: M540 | ES14: M541 | FO14: M551 | FP14: M552 | FQ14: M553 | FR14: M554 | FS14: M555 | FT14: M556 | FU14: M557 | FV14: M558 | FW14: M540 | FX14: M541
A15: 2VS | B15: 3600 | C15: 3663 | D15: 3608 | E15: 3680 | F15: 3681 | G15: 3683 | H15: 3688 | I15: 3689 | J15: 3605 | K15: 3606 | L15: 3607 | M15: 3684 | N15: 3673 | O15: 3612 | P15: 3619 | Q15: 3610 | R15: 3615 | S15: D300 | T15: D305 | U15: D306 | V15: D308 | W15: D310 | X15: D363 | Y15: 3601 | Z15: 3650 | AA15: 3651 | AB15: 3657 | AC15: 3652 | AD15: 3632 | AE15: 3603 | AF15: 3685 | AG15: 3660 | AH15: 3690 | AI15: 3616 | AJ15: 3624 | AK15: 3656 | AL15: 3613 | AM15: 516 | AN15: 519 | AO15: 520 | AP15: 529 | AQ15: 530 | AR15: 541 | AS15: 542 | AT15: 543 | AU15: 544 | AV15: 1304 | AW15: 1307 | AX15: 1380 | AY15: 1401 | AZ15: 1413 | BA15: 1477 | BB15: 1482 | BC15: 1486 | BD15: 1487 | BE15: E204 | BF15: E201 | BG15: E203 | BH15: E206* | BI15: E207 | BJ15: E213 | BK15: E214 | BL15: E215 | BM15: E219 | BN15: E831 | BO15: E832 | BP15: E820 | BQ15: E821 | BR15: E826 | BS15: E931 | BT15: E932 | BU15: E935 | BV15: E936 | BW15: E920 | BX15: E921 | BY15: E926 | BZ15: E822 | CA15: E837 | CB15: E234 | CC15: E850 | CD15: E852 | CE15: E855 | CF15: E950 | CG15: E295 | CH15: E296 | CI15: E297 | CJ15: SE36 | CK15: E891 | CL15: E892 | CM15: E894 | CN15: E896 | CO15: E898 | CP15: E624ST | CQ15: E624UP | CR15: E823 | CS15: E825 | CT15: E680 | CU15: M550* | CV15: M551* | CW15: M552* | CX15: M553* | CY15: M554* | CZ15: M555* | DA15: M556* | DB15: M557* | DC15: M558* | DD15: M540 | DE15: M541
A16: 3VS | B16: 3600 | C16: 3663 | D16: 3608 | E16: 3680 | F16: 3681 | G16: 3683 | H16: 3688 | I16: 3689 | J16: 3605 | K16: 3606 | L16: 3607 | M16: 3684 | N16: 3673 | O16: 3612 | P16: 3619 | Q16: 3610 | R16: 3615 | S16: B300* | T16: B305* | U16: B306* | V16: B308* | W16: B310* | X16: B363* | Y16: D300 | Z16: D305 | AA16: D306 | AB16: D308 | AC16: D310 | AD16: D363 | AE16: K360* | AF16: K365* | AG16: K366* | AH16: K368* | AI16: K361* | AJ16: K363* | AK16: G360* | AL16: G365* | AM16: G366* | AN16: G368* | AO16: G361* | AP16: G363* | AQ16: 3601 | AR16: 3650 | AS16: 3651 | AT16: 3657 | AU16: 3652 | AV16: 3632 | AW16: 3603 | AX16: 3685 | AY16: 3660 | AZ16: 3690 | BA16: 3616 | BB16: 3624 | BC16: 3656 | BD16: 3613 | BE16: 516 | BF16: 519 | BG16: 520 | BH16: 529 | BI16: 530 | BJ16: 541 | BK16: 542 | BL16: 543 | BM16: 544 | BN16: 1304 | BO16: 1307 | BP16: 1380 | BQ16: 1401 | BR16: 1413 | BS16: 1477 | BT16: 1482 | BU16: 1486 | BV16: 1487 | BW16: E204 | BX16: E201 | BY16: E203 | BZ16: E206* | CA16: E207 | CB16: E213 | CC16: E214 | CD16: E215 | CE16: E219 | CF16: E831 | CG16: E832 | CH16: E820 | CI16: E821 | CJ16: E826 | CK16: E931 | CL16: E932 | CM16: E935 | CN16: E936 | CO16: E920 | CP16: E921 | CQ16: E926 | CR16: E822 | CS16: E837 | CT16: E234 | CU16: E850 | CV16: E852 | CW16: E855 | CX16: E950 | CY16: E295 | CZ16: E296 | DA16: E297 | DB16: SE36 | DC16: E891 | DD16: E892 | DE16: E894 | DF16: E896 | DG16: E898 | DH16: E624ST | DI16: E624UP | DJ16: E823 | DK16: E825 | DL16: E680 | DM16: M550* | DN16: M551* | DO16: M552* | DP16: M553* | DQ16: M554* | DR16: M555* | DS16: M556* | DT16: M557* | DU16: M558* | DV16: M540 | DW16: M541
A17: CARAT S1 | B17: 1400 | C17: 1463 | D17: 1408 | E17: 1480 | F17: 1481 | G17: 1483 | H17: 1488 | I17: 1405 | J17: 1406 | K17: 1407 | L17: 1484 | M17: 1312 | N17: 1319 | O17: 1410 | P17: 1415 | Q17: D400 | R17: D405 | S17: D406 | T17: D408 | U17: D410 | V17: D463 | W17: K400 | X17: K405 | Y17: K406 | Z17: K408 | AA17: K410 | AB17: K463 | AC17: G400 | AD17: G405 | AE17: G406 | AF17: G408 | AG17: G410 | AH17: G463 | AI17: 2201 | AJ17: 1250 | AK17: 1251 | AL17: 1253 | AM17: 500 | AN17: 500F | AO17: 501 | AP17: 503 | AQ17: 515 | AR17: 560 | AS17: 580 | AT17: 586 | AU17: 587 | AV17: 2530 | AW17: 2532 | AX17: 2534 | AY17: 2613 | AZ17: 516 | BA17: 519 | BB17: 520 | BC17: 529 | BD17: 530 | BE17: 541 | BF17: 542 | BG17: 543 | BH17: 544 | BI17: 1304 | BJ17: 1307 | BK17: 1380 | BL17: 1401 | BM17: 1413 | BN17: 1477 | BO17: 1482 | BP17: E204 | BQ17: E201 | BR17: E203 | BS17: E206 | BT17: E207 | BU17: E213 | BV17: E214 | BW17: E215 | BX17: E219 | BY17: E831 | BZ17: E832 | CA17: E820 | CB17: E821 | CC17: E826 | CD17: E931 | CE17: E932 | CF17: E935 | CG17: E936 | CH17: E920 | CI17: E921 | CJ17: E926 | CK17: E822 | CL17: E837 | CM17: E234 | CN17: E850 | CO17: E852 | CP17: E855 | CQ17: E950 | CR17: E295 | CS17: E296 | CT17: E297 | CU17: SE65 | CV17: E891 | CW17: E892 | CX17: E894 | CY17: E896 | CZ17: E898 | DA17: E624ST | DB17: E624UP | DC17: E823 | DD17: E825 | DE17: E680
A18: CARAT S3 | B18: 3600 | C18: 3663 | D18: 3608 | E18: 3680 | F18: 3681 | G18: 3683 | H18: 3688 | I18: 3605 | J18: 3606 | K18: 3607 | L18: 3684 | M18: 3612 | N18: 3619 | O18: 3610 | P18: 3615 | Q18: D400 | R18: D405 | S18: D406 | T18: D408 | U18: D410 | V18: D463 | W18: K360 | X18: K365 | Y18: K366 | Z18: K368 | AA18: K361 | AB18: K363 | AC18: G360 | AD18: G365 | AE18: G366 | AF18: G368 | AG18: G361 | AH18: G363 | AI18: 3601 | AJ18: 3650 | AK18: 3651 | AL18: 3657 | AM18: 3652 | AN18: 3632 | AO18: 3685 | AP18: 3690 | AQ18: 516 | AR18: 519 | AS18: 520 | AT18: 529 | AU18: 530 | AV18: 541 | AW18: 542 | AX18: 543 | AY18: 544 | AZ18: 1304 | BA18: 1307 | BB18: 1380 | BC18: 1401 | BD18: 1413 | BE18: 1477 | BF18: 1482 | BG18: E204 | BH18: E201 | BI18: E203 | BJ18: E206 | BK18: E207 | BL18: E213 | BM18: E214 | BN18: E215 | BO18: E219 | BP18: E831 | BQ18: E832 | BR18: E820 | BS18: E821 | BT18: E826 | BU18: E931 | BV18: E932 | BW18: E935 | BX18: E936 | BY18: E920 | BZ18: E921 | CA18: E926 | CB18: E822 | CC18: E837 | CD18: E234 | CE18: E850 | CF18: E852 | CG18: E855 | CH18: E950 | CI18: E295 | CJ18: E296 | CK18: E297 | CL18: SE35 | CM18: E891 | CN18: E892 | CO18: E894 | CP18: E896 | CQ18: E898 | CR18: E624ST | CS18: E624UP | CT18: E823 | CU18: E825 | CV18: E680
A19: CARAT S4 | B19: 1400 | C19: 1463 | D19: 1408 | E19: 1480 | F19: 1481 | G19: 1483 | H19: 1488 | I19: 1405 | J19: 1406 | K19: 1407 | L19: 1484 | M19: 1312 | N19: 1319 | O19: 1410 | P19: 1415 | Q19: D300 | R19: D305 | S19: D306 | T19: D308 | U19: D310 | V19: D363 | W19: 2201 | X19: 1250 | Y19: 1251 | Z19: 1253 | AA19: 500 | AB19: 500F | AC19: 515 | AD19: 580 | AE19: 516 | AF19: 519 | AG19: 520 | AH19: 529 | AI19: 530 | AJ19: 541 | AK19: 542 | AL19: 543 | AM19: 544 | AN19: 1304 | AO19: 1307 | AP19: 1380 | AQ19: 1401 | AR19: 1413 | AS19: 1477 | AT19: 1482 | AU19: E204 | AV19: E201 | AW19: E203 | AX19: E206 | AY19: E207 | AZ19: E213 | BA19: E214 | BB19: E215 | BC19: E219 | BD19: E831 | BE19: E832 | BF19: E820 | BG19: E821 | BH19: E826 | BI19: E931 | BJ19: E932 | BK19: E935 | BL19: E936 | BM19: E920 | BN19: E921 | BO19: E926 | BP19: E822 | BQ19: E837 | BR19: E234 | BS19: E850 | BT19: E852 | BU19: E855 | BV19: E950 | BW19: E295 | BX19: E296 | BY19: E297 | BZ19: SE66 | CA19: E891 | CB19: E892 | CC19: E894 | CD19: E896 | CE19: E898 | CF19: E624ST | CG19: E624UP | CH19: E823 | CI19: E825 | CJ19: E681
A20: CARAT S5 | B20: 3600 | C20: 3663 | D20: 3608 | E20: 3680 | F20: 3681 | G20: 3683 | H20: 3688 | I20: 3605 | J20: 3606 | K20: 3607 | L20: 3684 | M20: 3612 | N20: 3619 | O20: 3610 | P20: 3615 | Q20: D300 | R20: D305 | S20: D306 | T20: D308 | U20: D310 | V20: D363 | W20: K360 | X20: K365 | Y20: K366 | Z20: K368 | AA20: K361 | AB20: K363 | AC20: G360 | AD20: G365 | AE20: G366 | AF20: G368 | AG20: G361 | AH20: G363 | AI20: 3601 | AJ20: 3650 | AK20: 3651 | AL20: 3657 | AM20: 3652 | AN20: 3632 | AO20: 3685 | AP20: 3690 | AQ20: 516 | AR20: 519 | AS20: 520 | AT20: 529 | AU20: 530 | AV20: 541 | AW20: 542 | AX20: 543 | AY20: 544 | AZ20: 1304 | BA20: 1307 | BB20: 1380 | BC20: 1401 | BD20: 1413 | BE20: 1477 | BF20: 1482 | BG20: E204 | BH20: E201 | BI20: E203 | BJ20: E206 | BK20: E207 | BL20: E213 | BM20: E214 | BN20: E215 | BO20: E219 | BP20: E831 | BQ20: E832 | BR20: E820 | BS20: E821 | BT20: E826 | BU20: E931 | BV20: E932 | BW20: E935 | BX20: E936 | BY20: E920 | BZ20: E921 | CA20: E926 | CB20: E822 | CC20: E837 | CD20: E234 | CE20: E850 | CF20: E852 | CG20: E855 | CH20: E950 | CI20: E295 | CJ20: E296 | CK20: E297 | CL20: SE35 | CM20: E891 | CN20: E892 | CO20: E894 | CP20: E896 | CQ20: E898 | CR20: E624ST | CS20: E624UP | CT20: E823 | CU20: E825 | CV20: E680
